{"text_format":"1","workbook":"xlsx","n_sheets":5,"sheets":["DADOS","BDI (1)","PO","PLQ","CFF"],"not_rendered":{"charts":0,"images":9,"macros":1,"external_links":0,"defined_names":122,"comments":0,"pivot_tables":0},"unopened":[],"bounds":{"document_bytes":16777216,"sheet_cells":100000,"rows_first":2000,"rows_last":500,"rows_between":2000,"halvings":0,"cell_chars":16384,"cell_head_chars":4096},"cells_cut":0,"cells_raw":0,"read":"whole","date_system":"1900"}

{"sheet":"DADOS","index":0,"n_rows":230,"n_cols":24,"rows_kept":230,"cut":false,"hidden":false,"merged":[[220,2,220,4],[219,5,219,8],[220,5,220,8],[219,15,219,23],[220,15,220,23],[27,9,27,14],[31,6,31,9],[30,10,30,15],[31,10,31,15],[27,15,27,23],[30,16,30,23],[31,16,31,23],[30,0,30,5],[27,2,27,4],[28,2,28,4],[27,5,27,8],[28,5,28,8],[31,0,31,5],[30,6,30,9],[28,15,28,23],[28,9,28,14],[66,0,66,23],[87,0,87,23],[42,10,42,12],[229,14,229,19],[228,7,228,8],[228,10,228,12],[228,14,228,19],[229,22,229,23],[223,16,223,23],[222,10,222,15],[79,0,79,23],[82,0,82,23],[229,0,229,1],[229,20,229,21],[229,10,229,12],[220,9,220,14],[226,6,226,18],[228,0,228,1],[228,2,228,6],[229,2,229,6],[229,7,229,8],[223,10,223,15],[222,16,222,23],[225,3,225,5],[84,0,84,23],[220,0,220,1],[222,0,222,5],[223,0,223,5],[223,6,223,9],[222,6,222,9],[219,2,219,4],[86,0,86,23],[228,22,228,23],[228,20,228,21],[42,7,42,8],[226,0,226,1],[225,6,225,18],[225,0,225,1],[219,0,219,1],[226,3,226,5],[47,0,47,2],[56,7,56,10],[53,1,53,4],[64,0,64,23],[54,7,54,10],[44,0,44,23],[62,0,62,23],[49,0,49,23],[54,1,54,4],[56,1,56,4],[53,7,53,10],[0,1,1,23],[55,7,55,10],[41,22,41,23],[36,0,36,1],[41,0,41,1],[42,22,42,23],[42,14,42,19],[42,2,42,6],[41,10,41,12],[42,20,42,21],[34,0,34,23],[36,6,36,18],[36,3,36,5],[3,0,3,23],[5,0,5,23],[7,0,7,23],[23,0,23,23],[13,0,13,23],[9,0,9,23],[11,0,11,23],[41,7,41,8],[55,1,55,4],[41,14,41,19],[42,0,42,1],[219,9,219,14],[98,0,98,23],[97,0,97,23],[96,0,96,23],[25,0,25,23],[27,0,27,1],[28,0,28,1],[68,0,68,23],[59,0,59,23],[61,0,61,23],[100,0,100,23],[94,0,94,23],[95,0,95,23],[37,0,37,1],[41,20,41,21],[69,0,69,23],[39,0,39,23],[99,0,99,23],[73,0,73,23],[80,0,80,23],[89,0,89,23],[92,0,92,23],[93,0,93,23],[91,0,91,23],[37,6,37,18],[85,0,85,23],[37,3,37,5],[41,2,41,6],[67,0,67,23],[77,0,77,23],[70,0,70,23],[71,0,71,23],[15,0,15,23],[17,0,17,23],[21,0,21,8],[75,0,75,23],[83,0,83,23],[76,0,76,23],[78,0,78,23],[81,0,81,23]]}
[27476,"PO - Planilha Orçamentária / PLQ - Planilha de Levantamento de Quantidades / CFF - Cronograma Físico Financeiro"]
["v008"]
[]
["INSTRUÇÕES DE USO E PREENCHIMENTO"]
[]
["1. Este documento somente pode ser utilizado nas versões do Excel 2003 ou superior. Não deve ser utilizado versões do BROffice. O Documento deve ser salvo SOMENTE em extensão habilitada para macros (.xls ou .xlsm). Se o documento for salvo na extensão .xlsx, o arquivo será INUTILIZADO. "]
[]
["2. Para funcionamento pleno desse arquivo, a Segurança de Macros do Excel deve ser habilitada."]
[]
["2.1  Na Versão Excel 2003, selecione na Faixa de Opções: Ferramentas --> Macro --> Segurança --> Na aba Nível de Segurança selecione a Opção \"Baixo\" --> Clique em OK --> Feche e abra o Excel novamente para utilizar a Planilha."]
[]
["2.2 Na Versão Excel 2007 ou superior, selecione na Faixa de Opções: Arquivo --> Opções --> Central de Confiabilidade --> Configurações da Central de Confiabilidade --> Configurações de Macro --> Habilitar todas as Macros --> Clique em OK --> Feche e abra o excel novamente para utilizar a Planilha."]
[]
["3. O Preenchimento deve ser feito somente nas células em amarelo. As outras células são de preenchimento Automático."]
[]
["4. Preferências de Elaboração do Orçamento"]
[]
["4.1. Preenchimento de Quantidades"]
[]
[]
[]
["5. Ordem de Preenchimento"]
[]
["5.1. na Aba DADOS"]
[]
["5.1.1. Preencha no Quadro abaixo os Dados do TC/CR:"]
[]
["Nº OPERAÇÃO",null,"GESTOR",null,null,"PROGRAMA",null,null,null,"AÇÃO / MODALIDADE",null,null,null,null,null,"OBJETO"]
[null,null,null,null,null,null,null,null,null,"Recurso Próprio ",null,null,null,null,null,"Pavimentação Asfáltica Sobre Pedras Irregulares"]
[]
["PROPONENTE / TOMADOR",null,null,null,null,null,"MUNICÍPIO / UF",null,null,null,"LOCALIDADE / ENDEREÇO",null,null,null,null,null,"APELIDO DO EMPREENDIMENTO"]
["Prefeitura Municipal de Tunápolis ",null,null,null,null,null,"Tunápolis/SC",null,null,null,"Rua São Lourenço "]
[]
[]
["5.1.2. Preencha no quadro abaixo as informações sobre o orçamento:"]
[]
["DATA BASE",null,"DESON.","LOCALIDADE DO SINAPI",null,null,"DESCRIÇÃO DO LOTE",null,null,null,null,null,null,null,null,null,null,null,null,"BDI 1","BDI 2","BDI 3","BDI 4","BDI 5"]
["2020-07-01",null,"Não","Florianópolis / SC",null,null,null,null,null,null,null,null,null,null,null,null,null,null,null,{"$f":"IF(ISERROR(INDIRECT(\"'BDI (\"&RIGHT(T37,1)&\")'!N27\")),\"\",INDIRECT(\"'BDI (\"&RIGHT(T37,1)&\")'!N27\"))","v":0.22},{"$f":"IF(ISERROR(INDIRECT(\"'BDI (\"&RIGHT(U37,1)&\")'!N27\")),\"\",INDIRECT(\"'BDI (\"&RIGHT(U37,1)&\")'!N27\"))","v":""},{"$f":"IF(ISERROR(INDIRECT(\"'BDI (\"&RIGHT(V37,1)&\")'!N27\")),\"\",INDIRECT(\"'BDI (\"&RIGHT(V37,1)&\")'!N27\"))","v":""},{"$f":"IF(ISERROR(INDIRECT(\"'BDI (\"&RIGHT(W37,1)&\")'!N27\")),\"\",INDIRECT(\"'BDI (\"&RIGHT(W37,1)&\")'!N27\"))","v":""},{"$f":"IF(ISERROR(INDIRECT(\"'BDI (\"&RIGHT(X37,1)&\")'!N27\")),\"\",INDIRECT(\"'BDI (\"&RIGHT(X37,1)&\")'!N27\"))","v":""}]
[]
["4.1.2. Preencha no quadro abaixo as informações sobre o orçamento licitado:"]
[]
["CTEF n.º",null,"NOME DA EMPRESA ",null,null,null,null,"DATA BASE",null,"DESON.","REGIME DE EXECUÇÃO",null,null,"ACOMP.","OBJETO CTEF",null,null,null,null,null,"DATA ASSINATURA",null,"VIGÊNCIA"]
[]
[]
["5.1.3. Preencha a data de Início da Obra:"]
[]
["DATA INÍCIO"]
["2020-11-09"]
[]
["5.1.4. Preencha no(s) Quadro(s) abaixo os Dados do(s) Responsável(is) Técnico(s) pela elaboração do Orçamento:"]
[]
[null,null,null,null,null,null,"Exibir o 2° Quadro de Assinatura?",null,null,null,"SIM"]
[]
["Nome:","Leonardo Ives Massing Moreira ",null,null,null,null,"Nome:"]
[{"$f":"IF(OR(TipoOrçamento=\"BASE\",TipoOrçamento=\"REPROGRAMADONPL\"),\"Título:\",\"Cargo:\")","v":"Título:"},"Engenheiro Civil ",null,null,null,null,{"$f":"A55","v":"Título:"}]
[{"$f":"IF(OR(TipoOrçamento=\"BASE\",TipoOrçamento=\"REPROGRAMADONPL\"),\"CREA/CAU:\",\"Empresa:\")","v":"CREA/CAU:"},"140.221-0",null,null,null,null,{"$f":"A56","v":"CREA/CAU:"}]
[{"$f":"IF(OR(TipoOrçamento=\"BASE\",TipoOrçamento=\"REPROGRAMADONPL\"),\"ART/RRT:\",\"CNPJ:\")","v":"ART/RRT:"},null,null,null,null,null,{"$f":"A57","v":"ART/RRT:"}]
[]
[]
["5.2. Legenda das Abas"]
[]
["5.2.1.  LARANJA: Aba DADOS. Preenchimento Obrigatório. Impressão Dispensada."]
["5.2.2.  AMARELO: Abas BDI, PO, PLQ e CFF. Preenchimento e Impressão Obrigatórias. O preenchimento da Aba BDI é dispensada para os casos de Aquisição Direta de Materiais e Equipamentos. A Impressão da Aba PLQ pode ser dispensada para casos de Frente de Obra Única."]
[]
["5.3. na Aba BDI (Bonificações e Despesas Indiretas):"]
[]
["5.3.1. Escolha o tipo de empreendimento."]
["5.3.2. Escolha se o BDI será do tipo desonerado ou não (aba DADOS)"]
["5.3.3. Informe a base de cálculo do ISS (0 a 100%)."]
["5.3.4. Informe a alíquota do ISS (Normalmente de 2 a 5%)."]
["5.3.5. Defina na tabela os percentuais a serem adotados para cada item que compõe o BDI nos campos em amarelo."]
["5.3.6. Preencha o campo observações se necessário (recomendado para os orçamentos que utilizam mais de um BDI)."]
[]
["5.4. na Aba PO (Planilha Orçamentária):"]
[]
["5.4.1. Primeiramente, selecione os níveis de cada item do orçamento na coluna NÍVEL."]
["5.4.1.1: O nível de \"Serviço\" serve tanto para serviços ou insumos (mão-de-obra / material / equipamento / veículo / máquina / ferramenta / etc). Um \"nível 2/3/4\" é um título (é preenchida apenas a coluna descrição) utilizado para organizar melhor a planilha orçamentária e engloba (agrupa) serviços e agrupadores de nível inferior."]
["5.4.2. Após a seleção dos níveis, preencha, para cada serviço, as informações sobre a Fonte de Referência, (SINAPI, SICRO, SIURB, etc) e o respectivo Código de Referência."]
["5.4.3. Esta planilha é compatível com o arquivo REFERÊNCIA distribuído pela CAIXA. Caso o arquivo REFERÊNCIA esteja aberto, será possível buscar um código através do botão \"Buscar Código\". Desta forma a descrição dos serviços será preenchida automaticamente (podendo ser substituída). Caso contrário, seu preenchimento deve ser manual."]
["5.4.3.1. As descrições e unidades preenchidas automaticamente ficarão vinculadas ao arquivo REFERÊNCIA até que se use o botão \"Fixar Descrições\", que quebra a fórmula e transforma as descrições em texto."]
["5.4.4. Preencher o custo unitário do serviço/insumo na Coluna CUSTO UNITÁRIO. ATENÇÃO: o custo unitário adotado deve ser menor ou igual ao contido na tabela de referência ou mediana das cotações de mercado."]
["5.4.5. Indicar o BDI adotado para cada serviço/insumo na Coluna BDI. Preferencialmente selecione uma das opções da lista suspensa que aparecerá na célula, esta lista contém os 05 BDIs que podem ser preenchidos na Aba BDI (conforme item 5.2 das instruções). Caso seja necessária a adoção de mais de 05 valores diferentes de BDI, digite o percentual diretamente na célula."]
["5.4.6. Conforme selecionado no item 4.1. desta Aba, a Coluna Quantidade pode ser preenchida diretamente na PO, ou representar a soma das quantidades de cada Frente de Obra, informadas na aba PLQ (Planilha de Levantamento de Quantitativos)."]
["5.4.7. OBSERVAÇÃO: As demais colunas (Item / Quantidade / Preço Unitário / Preço Total) são de preenchimento automático. Não tente preenche-las ou alterá-las na Aba PO."]
["5.4.8. Se for necessário acrescentar ou excluir linhas da Planilha Orçamentária, utilize o Botão EDITAR PLANILHA e selecione as opções no quadro.\nATENÇÃO: quanto maior o número de linhas mais lento será o processamento dos dados, então acrescente apenas o número necessário ou um pouco a mais."]
["5.4.8.1. Evite deixar linhas em branco no corpo da Planilha Orçamentária."]
["5.4.9. Caso deseje importar os dados de outro arquivo utilize apenas a opção COLAR ESPECIAL ==> VALORES."]
["5.4.10. Clique no Botão LICITAR / REPROGRAMAR para preencher o Orçamento Licitado ou Reprogramado."]
[]
["5.5. na Aba PLQ (Planilha de Levantamento de Quantitativos):"]
[]
["5.5.1. Preencha primeiramente as Frentes de Obra."]
["5.5.1.1. Exemplos de Frentes de Obra (Rua A trecho 01 / Rua A trecho 02 / Rua B ; UH 01 / UH 02 / UH 03). "]
["5.5.2. Preencha as quantidades dos serviços por frente de obra. A soma das quantidades de todas as frentes de um determinado serviço será a quantidade exibida na Planilha Orçamentária."]
["5.5.3. Caso deseje incluir ou excluir frentes, utilize os botões ADICIONAR e EXCLUIR."]
[]
["5.6. na Aba CFF (Cronograma Físico-Financeiro):"]
[]
["5.6.1. Preencha a data de início da obra na aba Dados."]
["5.6.2. Preencha as porcentagens previstas por parcela para cada meta ou macrosserviço."]
["5.6.3. Para atualizar o Cronograma conforme o Orçamento e incluir ou excluir parcelas, utilize o botão EDITAR / ATUALIZAR CRONOGRAMA."]
[]
[]
[]
[]
[]
[null,null,null,null,null,null,null,null,null,null,null,"(Selecione uma Localidade)"]
[null,null,null,null,null,null,null,null,null,null,null,"Aracaju / SE",null,null,null,null,null,null,{"$f":"T38","v":0.22}]
[null,null,null,null,null,null,null,null,null,null,null,"Belém / PA",null,null,null,null,null,null,{"$f":"U38","v":""}]
[null,null,null,null,null,null,null,null,null,null,null,"Belo Horizonte / MG",null,null,null,null,null,null,{"$f":"V38","v":""}]
[null,null,null,null,null,null,null,null,null,null,null,"Boa Vista / RR",null,null,null,null,null,null,{"$f":"W38","v":""}]
[null,null,null,null,null,null,null,null,null,null,null,"Brasília / DF",null,null,null,null,null,null,{"$f":"X38","v":""}]
[null,null,null,null,null,null,null,null,null,null,null,"Campo Grande / MS"]
[null,null,null,null,null,null,null,null,null,null,null,"Cuiabá / MT"]
[null,null,null,null,null,null,null,null,null,null,null,"Curitiba / PR",null,null,null,"Empreitada Preço Global"]
[null,null,null,null,null,null,null,null,null,null,null,"Florianópolis / SC",null,null,null,"Empreitada Preço Unitário"]
[null,null,null,null,null,null,null,null,null,null,null,"Fortaleza / CE",null,null,null,"Empreitada Integral"]
[null,null,null,null,null,null,null,null,null,null,null,"Goiânia / GO",null,null,null,"Tarefa"]
[null,null,null,null,null,null,null,null,null,null,null,"João Pessoa / PB",null,null,null,"Contratação Integrada"]
[null,null,null,null,null,null,null,null,null,null,null,"Macapá / AP",null,null,null,"Não se aplica"]
[null,null,null,null,null,null,null,null,null,null,null,"Maceió / AL"]
[null,null,null,null,null,null,null,null,null,null,null,"Manaus / AM",null,null,null,"BM"]
[null,null,null,null,null,null,null,null,null,null,null,"Natal / RN",null,null,null,"PLE"]
[null,null,null,null,null,null,null,null,null,null,null,"Palmas / TO"]
[null,null,null,null,null,null,null,null,null,null,null,"Porto Alegre / RS"]
[null,null,null,null,null,null,null,null,null,null,null,"Porto Velho / RO"]
[null,null,null,null,null,null,null,null,null,null,null,"Recife / PE"]
[null,null,null,null,null,null,null,null,null,null,null,"Rio Branco / AC"]
[null,null,null,null,null,null,null,null,null,null,null,"Rio de Janeiro / RJ"]
[null,null,null,null,null,null,null,null,null,null,null,"Salvador / BA"]
[null,null,null,null,null,null,null,null,null,null,null,"São Luís / MA"]
[null,null,null,null,null,null,null,null,null,null,null,"São Paulo / SP"]
[null,null,null,null,null,null,null,null,null,null,null,"Teresina / PI"]
[null,null,null,null,null,null,null,null,null,null,null,"Vitória / ES"]
[]
[]
[]
[]
[]
[]
[]
[]
[]
[]
[]
[]
[]
[]
[]
[]
[]
[]
[]
[]
[]
[]
[]
[]
[]
[]
[]
[]
[]
[]
[]
[]
[]
[]
[]
[]
[]
[]
[]
[]
[]
[]
[]
[]
[]
[]
[]
[]
[]
[]
[]
[]
[]
[]
[]
[]
[]
[]
[]
[]
[]
[]
[]
[]
[]
[]
[]
[]
[]
[]
[]
[]
[]
[]
[]
[]
[]
[]
[]
[]
[]
[]
[]
[]
[]
[{"$f":"A28","v":"Nº OPERAÇÃO"},null,{"$f":"C28","v":"GESTOR"},null,null,{"$f":"F28","v":"PROGRAMA"},null,null,null,{"$f":"J28","v":"AÇÃO / MODALIDADE"},null,null,null,null,null,{"$f":"P28","v":"OBJETO"}]
[{"$f":"IF(A29=\"\",\"\",A29)","v":""},null,{"$f":"IF(C29=\"\",\"\",C29)","v":""},null,null,{"$f":"IF(F29=\"\",\"\",F29)","v":""},null,null,null,{"$f":"IF(J29=\"\",\"\",J29)","v":"Recurso Próprio "},null,{"$f":"IF(#REF!=\"\",\"\",#REF!)","v":{"$error":"#REF!"}},null,{"$f":"IF(#REF!=\"\",\"\",#REF!)","v":{"$error":"#REF!"}},null,{"$f":"IF(P29=\"\",\"\",P29)","v":"Pavimentação Asfáltica Sobre Pedras Irregulares"}]
[]
[{"$f":"A31","v":"PROPONENTE / TOMADOR"},null,null,null,null,null,{"$f":"G31","v":"MUNICÍPIO / UF"},null,null,null,{"$f":"K31","v":"LOCALIDADE / ENDEREÇO"},null,null,null,null,null,{"$f":"Q31","v":"APELIDO DO EMPREENDIMENTO"}]
[{"$f":"IF(A32=\"\",\"\",A32)","v":"Prefeitura Municipal de Tunápolis "},null,null,null,null,null,{"$f":"IF(G32=\"\",\"\",G32)","v":"Tunápolis/SC"},{"$f":"IF(I32=\"\",\"\",I32)","v":""},null,{"$f":"IF(#REF!=\"\",\"\",#REF!)","v":{"$error":"#REF!"}},{"$f":"IF(K32=\"\",\"\",K32)","v":"Rua São Lourenço "},null,null,null,null,null,{"$f":"IF(Q32=\"\",\"\",Q32)","v":""}]
[]
[{"$f":"A37","v":"DATA BASE"},null,{"$f":"C37","v":"DESON."},{"$f":"D37","v":"LOCALIDADE DO SINAPI"},null,null,{"$f":"G37","v":"DESCRIÇÃO DO LOTE"},null,null,null,null,null,null,null,null,null,null,null,null,{"$f":"T37","v":"BDI 1"},{"$f":"U37","v":"BDI 2"},{"$f":"V37","v":"BDI 3"},{"$f":"W37","v":"BDI 4"},{"$f":"X37","v":"BDI 5"}]
[{"$f":"IF(A38=\"\",\"\",A38)","v":"2020-07-01"},null,{"$f":"IF(C38=\"\",\"\",C38)","v":"Não"},"Florianópolis / SC","","","","","","","","","","","","","","","",0.22,"","","",""]
[]
["CTEF n.º",null,"NOME DA EMPRESA / CNPJ:",null,null,null,null,"DATA BASE",null,"DESON.","REGIME DE EXECUÇÃO",null,null,"ACOMP.","OBJETO CTEF",null,null,null,null,null,"DATA ASSINATURA",null,"VIGÊNCIA"]
[{"$f":"IF(A43=\"\",\"\",A43)","v":""},null,{"$f":"IF(C43=\"\",\"\",C43)","v":""},null,{"$f":"IF(E43=\"\",\"\",E43)","v":""},null,{"$f":"IF(G43=\"\",\"\",G43)","v":""},{"$f":"IF(H43=\"\",\"\",H43)","v":""},{"$f":"IF(I43=\"\",\"\",I43)","v":""},{"$f":"IF(J43=\"\",\"\",J43)","v":""},{"$f":"IF(K43=\"\",\"\",K43)","v":""},null,{"$f":"IF(M43=\"\",\"\",M43)","v":""},{"$f":"IF(N43=\"\",\"\",N43)","v":""},{"$f":"IF(O43=\"\",\"\",O43)","v":""},null,{"$f":"IF(Q43=\"\",\"\",Q43)","v":""},null,{"$f":"IF(S43=\"\",\"\",S43)","v":""},null,{"$f":"IF(U43=\"\",\"\",U43)","v":""},null,{"$f":"IF(W43=\"\",\"\",W43)","v":""}]

{"sheet":"BDI (1)","index":1,"n_rows":59,"n_cols":23,"rows_kept":59,"cut":false,"hidden":false,"merged":[[47,15,47,17],[44,8,44,11],[42,8,42,11],[12,16,12,17],[13,8,13,15],[13,16,13,17],[15,12,16,12],[12,8,12,15],[15,15,16,15],[15,16,16,16],[15,13,16,13],[15,8,16,11],[15,14,16,14],[10,8,10,15],[10,16,10,17],[3,8,3,9],[3,10,3,17],[4,8,4,9],[4,10,4,17],[6,8,6,17],[7,8,7,17],[9,8,9,15],[9,16,9,17],[15,19,23,20],[41,8,41,11],[17,8,17,11],[18,8,18,11],[19,8,19,11],[20,8,20,11],[21,8,21,11],[22,8,22,11],[23,8,23,11],[24,8,24,11],[15,17,16,17],[36,8,36,17],[31,15,32,15],[31,12,31,14],[32,12,32,14],[31,11,32,11],[49,9,49,11],[28,9,28,17],[25,8,25,11],[26,8,26,11],[26,15,26,17],[44,14,44,17],[30,8,30,17],[34,8,34,17],[41,14,41,17],[48,9,48,11],[39,8,39,17],[45,8,45,11],[45,14,45,17],[46,9,46,11],[46,15,46,17],[47,9,47,11]]}
[null,null,null,null,"MIN","MED","MAX",null,null,null,null,null,null,{"$f":"\"Quadro de Composição do BDI \"&MID(CELL(\"nome.arquivo\",N1),5+FIND(\"BDI (\",CELL(\"nome.arquivo\",N1)),1)","v":"Quadro de Composição do BDI 1"}]
["Construção e Reforma de Edifícios","AC",{"$f":"CONCATENATE(A2,\"-\",B2)","v":"Construção e Reforma de Edifícios-AC"},null,0.03,0.04,5.5E-2]
[{"$f":"A2","v":"Construção e Reforma de Edifícios"},"SG","Construção e Reforma de Edifícios-SG",null,8.0000000000000002E-3,8.0000000000000002E-3,0.01]
[{"$f":"A3","v":"Construção e Reforma de Edifícios"},"R","Construção e Reforma de Edifícios-R",null,9.7000000000000003E-3,1.2699999999999999E-2,1.2699999999999999E-2,null,"Nº TC/CR",null,"PROPONENTE / TOMADOR"]
[{"$f":"A4","v":"Construção e Reforma de Edifícios"},"DF","Construção e Reforma de Edifícios-DF",null,5.8999999999999999E-3,1.23E-2,1.3899999999999999E-2,null,{"$f":"DADOS!A29","v":0},null,{"$f":"DADOS!A32","v":"Prefeitura Municipal de Tunápolis "}]
[{"$f":"A5","v":"Construção e Reforma de Edifícios"},"L","Construção e Reforma de Edifícios-L",null,6.1600000000000002E-2,7.400000000000001E-2,8.9600000000000013E-2]
[{"$f":"A6","v":"Construção e Reforma de Edifícios"},"BDI PAD","Construção e Reforma de Edifícios-BDI PAD",null,0.2034,0.22120000000000001,0.25,null,"OBJETO"]
["Construção de Praças Urbanas, Rodovias, Ferrovias e recapeamento e pavimentação de vias urbanas","AC","Construção de Praças Urbanas, Rodovias, Ferrovias e recapeamento e pavimentação de vias urbanas-AC",null,3.7999999999999999E-2,4.0099999999999997E-2,4.6699999999999998E-2,null,{"$f":"DADOS!P29","v":"Pavimentação Asfáltica Sobre Pedras Irregulares"}]
["Construção de Praças Urbanas, Rodovias, Ferrovias e recapeamento e pavimentação de vias urbanas","SG","Construção de Praças Urbanas, Rodovias, Ferrovias e recapeamento e pavimentação de vias urbanas-SG",null,3.2000000000000002E-3,4.0000000000000001E-3,7.4000000000000003E-3]
["Construção de Praças Urbanas, Rodovias, Ferrovias e recapeamento e pavimentação de vias urbanas","R","Construção de Praças Urbanas, Rodovias, Ferrovias e recapeamento e pavimentação de vias urbanas-R",null,5.0000000000000001E-3,5.6000000000000008E-3,9.7000000000000003E-3,null,"TIPO DE OBRA DO EMPREENDIMENTO",null,null,null,null,null,null,null,"DESONERAÇÃO"]
["Construção de Praças Urbanas, Rodovias, Ferrovias e recapeamento e pavimentação de vias urbanas","DF","Construção de Praças Urbanas, Rodovias, Ferrovias e recapeamento e pavimentação de vias urbanas-DF",null,1.0200000000000001E-2,1.11E-2,1.21E-2,null,"Construção de Praças Urbanas, Rodovias, Ferrovias e recapeamento e pavimentação de vias urbanas",null,null,null,null,null,null,null,{"$f":"DADOS!$C$38","v":"Não"}]
["Construção de Praças Urbanas, Rodovias, Ferrovias e recapeamento e pavimentação de vias urbanas","L","Construção de Praças Urbanas, Rodovias, Ferrovias e recapeamento e pavimentação de vias urbanas-L",null,6.6400000000000001E-2,7.2999999999999995E-2,8.6899999999999991E-2]
["Construção de Praças Urbanas, Rodovias, Ferrovias e recapeamento e pavimentação de vias urbanas","BDI PAD","Construção de Praças Urbanas, Rodovias, Ferrovias e recapeamento e pavimentação de vias urbanas-BDI PAD",null,0.19600000000000001,0.2097,0.24230000000000002,null,"Conforme legislação tributária municipal, definir estimativa de percentual da base de cálculo para o ISS:",null,null,null,null,null,null,null,1]
["Construção de Redes de Abastecimento de Água, Coleta de Esgoto","AC","Construção de Redes de Abastecimento de Água, Coleta de Esgoto-AC",null,3.4300000000000004E-2,4.9299999999999997E-2,6.7099999999999993E-2,null,"Sobre a base de cálculo, definir a respectiva alíquota do ISS (entre 2% e 5%):",null,null,null,null,null,null,null,0.03]
[{"$f":"A14","v":"Construção de Redes de Abastecimento de Água, Coleta de Esgoto"},"SG","Construção de Redes de Abastecimento de Água, Coleta de Esgoto-SG",null,2.8000000000000004E-3,4.8999999999999998E-3,7.4999999999999997E-3]
[null,null,null,null,null,null,null,null,"Itens",null,null,null,"Siglas","% Adotado","Situação","1º Quartil","Médio","3º Quartil",null,{"$f":"IF(V27,\"Para BDI fora do intervalo estatístico, deve ser apresentado Relatório Técnico Circunstanciado justificando a adoção do percentual de cada parcela do BDI.\",\"\")","v":""}]
[{"$f":"A15","v":"Construção de Redes de Abastecimento de Água, Coleta de Esgoto"},"R","Construção de Redes de Abastecimento de Água, Coleta de Esgoto-R",null,0.01,1.3899999999999999E-2,1.7399999999999999E-2]
[{"$f":"A17","v":"Construção de Redes de Abastecimento de Água, Coleta de Esgoto"},"DF","Construção de Redes de Abastecimento de Água, Coleta de Esgoto-DF",null,9.3999999999999986E-3,9.8999999999999991E-3,1.1699999999999999E-2,null,{"$f":"IF($I$11=$A$59,\"Encargos Sociais incidentes sobre a mão de obra\",\"Administração Central\")","v":"Administração Central"},null,null,null,{"$f":"IF($I$11=$A$59,\"K1\",\"AC\")","v":"AC"},4.0099999999999997E-2,"-",{"$f":"VLOOKUP(CONCATENATE(I$11,\"-\",M18),$C$2:$G$49,3,FALSE)","v":3.7999999999999999E-2},{"$f":"VLOOKUP(CONCATENATE(I$11,\"-\",M18),$C$2:$G$49,4,FALSE)","v":4.0099999999999997E-2},{"$f":"VLOOKUP(CONCATENATE(I$11,\"-\",M18),$C$2:$G$49,5,FALSE)","v":4.6699999999999998E-2}]
[{"$f":"A18","v":"Construção de Redes de Abastecimento de Água, Coleta de Esgoto"},"L","Construção de Redes de Abastecimento de Água, Coleta de Esgoto-L",null,6.7400000000000002E-2,8.0399999999999985E-2,9.4E-2,null,{"$f":"IF($I$11=$A$59,\"Administração Central da empresa ou consultoria - overhead\",\"Seguro e Garantia\")","v":"Seguro e Garantia"},null,null,null,{"$f":"IF($I$11=$A$59,\"K2\",\"SG\")","v":"SG"},4.0000000000000001E-3,"-",{"$f":"VLOOKUP(CONCATENATE(I$11,\"-\",M19),$C$2:$G$49,3,FALSE)","v":3.2000000000000002E-3},{"$f":"VLOOKUP(CONCATENATE(I$11,\"-\",M19),$C$2:$G$49,4,FALSE)","v":4.0000000000000001E-3},{"$f":"VLOOKUP(CONCATENATE(I$11,\"-\",M19),$C$2:$G$49,5,FALSE)","v":7.4000000000000003E-3}]
[{"$f":"A19","v":"Construção de Redes de Abastecimento de Água, Coleta de Esgoto"},"BDI PAD","Construção de Redes de Abastecimento de Água, Coleta de Esgoto-BDI PAD",null,0.20760000000000001,0.24179999999999999,0.26440000000000002,null,{"$f":"IF($I$11=$A$59,\"\",\"Risco\")","v":"Risco"},null,null,null,{"$f":"IF($I$11=$A$59,\"\",\"R\")","v":"R"},5.5999999999999999E-3,"-",{"$f":"VLOOKUP(CONCATENATE(I$11,\"-\",M20),$C$2:$G$49,3,FALSE)","v":5.0000000000000001E-3},{"$f":"VLOOKUP(CONCATENATE(I$11,\"-\",M20),$C$2:$G$49,4,FALSE)","v":5.6000000000000008E-3},{"$f":"VLOOKUP(CONCATENATE(I$11,\"-\",M20),$C$2:$G$49,5,FALSE)","v":9.7000000000000003E-3}]
["Construção e Manutenção de Estações e Redes de Distribuição de Energia Elétrica","AC","Construção e Manutenção de Estações e Redes de Distribuição de Energia Elétrica-AC",null,5.2900000000000003E-2,5.9200000000000003E-2,7.9299999999999995E-2,null,{"$f":"IF($I$11=$A$59,\"\",\"Despesas Financeiras\")","v":"Despesas Financeiras"},null,null,null,{"$f":"IF($I$11=$A$59,\"\",\"DF\")","v":"DF"},1.11E-2,"-",{"$f":"VLOOKUP(CONCATENATE(I$11,\"-\",M21),$C$2:$G$49,3,FALSE)","v":1.0200000000000001E-2},{"$f":"VLOOKUP(CONCATENATE(I$11,\"-\",M21),$C$2:$G$49,4,FALSE)","v":1.11E-2},{"$f":"VLOOKUP(CONCATENATE(I$11,\"-\",M21),$C$2:$G$49,5,FALSE)","v":1.21E-2}]
[{"$f":"A21","v":"Construção e Manutenção de Estações e Redes de Distribuição de Energia Elétrica"},"SG","Construção e Manutenção de Estações e Redes de Distribuição de Energia Elétrica-SG",null,2.5000000000000001E-3,5.1000000000000004E-3,5.6000000000000008E-3,null,{"$f":"IF($I$11=$A$59,\"Margem bruta da empresa de consultoria\",\"Lucro\")","v":"Lucro"},null,null,null,{"$f":"IF($I$11=$A$59,\"K3\",\"L\")","v":"L"},7.2999999999999995E-2,"-",{"$f":"VLOOKUP(CONCATENATE(I$11,\"-\",M22),$C$2:$G$49,3,FALSE)","v":6.6400000000000001E-2},{"$f":"VLOOKUP(CONCATENATE(I$11,\"-\",M22),$C$2:$G$49,4,FALSE)","v":7.2999999999999995E-2},{"$f":"VLOOKUP(CONCATENATE(I$11,\"-\",M22),$C$2:$G$49,5,FALSE)","v":8.6899999999999991E-2}]
[{"$f":"A22","v":"Construção e Manutenção de Estações e Redes de Distribuição de Energia Elétrica"},"R","Construção e Manutenção de Estações e Redes de Distribuição de Energia Elétrica-R",null,0.01,1.4800000000000001E-2,1.9699999999999999E-2,null,"Tributos (impostos COFINS 3%, e  PIS 0,65%)",null,null,null,"CP",3.6499999999999998E-2,"-",3.6499999999999998E-2,3.6499999999999998E-2,3.6499999999999998E-2]
[{"$f":"A23","v":"Construção e Manutenção de Estações e Redes de Distribuição de Energia Elétrica"},"DF","Construção e Manutenção de Estações e Redes de Distribuição de Energia Elétrica-DF",null,1.01E-2,1.0700000000000001E-2,1.11E-2,null,"Tributos (ISS, variável de acordo com o município)",null,null,null,"ISS",{"$f":"IF($I$11<>$A$58,Q14*Q13,0)","v":0.03},"-",0,2.5000000000000001E-2,0.05]
[{"$f":"A24","v":"Construção e Manutenção de Estações e Redes de Distribuição de Energia Elétrica"},"L","Construção e Manutenção de Estações e Redes de Distribuição de Energia Elétrica-L",null,0.08,8.3100000000000007E-2,9.5100000000000004E-2,null,"Tributos (Contribuição Previdenciária sobre a Receita Bruta - 0% ou 4,5% - Desoneração)",null,null,null,"CPRB",{"$f":"IF(AND($I$11<>$A$58,Q11=\"Sim\"),4.5%,0%)","v":0},{"$f":"IF(AND(N25>=P25, N25<=R25), \"OK\", \"Não OK\")","v":"OK"},0,4.4999999999999998E-2,4.4999999999999998E-2]
[{"$f":"A25","v":"Construção e Manutenção de Estações e Redes de Distribuição de Energia Elétrica"},"BDI PAD","Construção e Manutenção de Estações e Redes de Distribuição de Energia Elétrica-BDI PAD",null,0.24,0.25840000000000002,0.27860000000000001,null,"BDI SEM desoneração\n(Fórmula Acórdão TCU)",null,null,null,"BDI PAD",{"$f":"IF($I$11=$A$58,0,ROUND((((1+N18+N19+N20)*(1+N21)*(1+N22)/(1-(N23+N24)))-1),4))","v":0.22},{"$f":"IF(OR($I$11=$A$59,$I$11=$A$58,AND(N26>=P26, N26<=R26)), \"OK\", \"FORA DO INTERVALO\")","v":"OK"},{"$f":"IF($I$11=$A$58,0,VLOOKUP(CONCATENATE($I$11,\"-\",$M26),$C$2:$G$49,3,FALSE))","v":0.19600000000000001},{"$f":"IF($I$11=$A$58,0,VLOOKUP(CONCATENATE($I$11,\"-\",$M26),$C$2:$G$49,4,FALSE))","v":0.2097},{"$f":"IF($I$11=$A$58,0,VLOOKUP(CONCATENATE($I$11,\"-\",$M26),$C$2:$G$49,5,FALSE))","v":0.24230000000000002}]
["Obras Portuárias, Marítimas e Fluviais","AC","Obras Portuárias, Marítimas e Fluviais-AC",null,0.04,5.5199999999999999E-2,7.85E-2,null,"BDI COM desoneração",null,null,null,"BDI DES",{"$f":"IF($I$11=$A$58,0,ROUND((((1+N18+N19+N20)*(1+N21)*(1+N22)/(1-(N23+N24+N25)))-1),4))","v":0.22},{"$f":"IF(Q11<>\"Sim\",\"\",O26)","v":""},null,null,null,null,null,null,{"$f":"AND(COUNTA(N18:N23)=6,O26<>\"ok\",NOT(V29))","v":false},"pedir anexo"]
[{"$f":"A27","v":"Obras Portuárias, Marítimas e Fluviais"},"SG","Obras Portuárias, Marítimas e Fluviais-SG",null,8.1000000000000013E-3,1.2199999999999999E-2,1.9900000000000001E-2]
[{"$f":"A28","v":"Obras Portuárias, Marítimas e Fluviais"},"R","Obras Portuárias, Marítimas e Fluviais-R",null,1.46E-2,2.3199999999999998E-2,3.1600000000000003E-2,null,{"$f":"IF(V29,\"X\",\"\")","v":""},"Anexo: Relatório Técnico Circunstanciado justificando a adoção do percentual de cada parcela do BDI.",null,null,null,null,null,null,null,null,null,null,null,false,"anexo apresentado"]
[]
[null,null,null,null,null,null,null,null,"Os valores de BDI foram calculados com o emprego da fórmula:"]
[{"$f":"A29","v":"Obras Portuárias, Marítimas e Fluviais"},"DF","Obras Portuárias, Marítimas e Fluviais-DF",null,9.3999999999999986E-3,1.0200000000000001E-2,1.3300000000000001E-2,null,null,null,null,{"$f":"IF(Q11=\"Sim\",\"BDI.DES =\",\"BDI.PAD =\")","v":"BDI.PAD ="},{"$f":"IF($I$11=$A$59,\"(1+K1+K2)*(1+K3)\",\"(1+AC + S + R + G)*(1 + DF)*(1+L)\")","v":"(1+AC + S + R + G)*(1 + DF)*(1+L)"},null,null," - 1"]
[{"$f":"A32","v":"Obras Portuárias, Marítimas e Fluviais"},"L","Obras Portuárias, Marítimas e Fluviais-L",null,7.1399999999999991E-2,8.4000000000000005E-2,0.1043,null,null,null,null,null,{"$f":"IF(Q11=\"Sim\",\"(1-CP-ISS-CRPB)\",\"(1-CP-ISS)\")","v":"(1-CP-ISS)"}]
[{"$f":"A33","v":"Obras Portuárias, Marítimas e Fluviais"},"BDI PAD","Obras Portuárias, Marítimas e Fluviais-BDI PAD",null,0.22800000000000001,0.27479999999999999,0.3095]
[null,null,null,null,null,null,null,null,{"$f":"CONCATENATE(\"Declaro para os devidos fins que, conforme legislação tributária municipal, a base de cálculo para \",I11,\", é de \",Q13*100,\"%, com a respectiva alíquota de \",Q14*100,\"%.\")","v":"Declaro para os devidos fins que, conforme legislação tributária municipal, a base de cálculo para Construção de Praças Urbanas, Rodovias, Ferrovias e recapeamento e pavimentação de vias urbanas, é de 100%, com a respectiva alíquota de 3%."}]
[]
[null,null,null,null,null,null,null,null,{"$f":"CONCATENATE(\"Declaro para os devidos fins que o regime de Contribuição Previdenciária sobre a Receita Bruta adotado para elaboração do orçamento foi \",IF(Q11=\"Sim\",\"COM\",\"SEM\"),\" Desoneração, e que esta é a alternativa mais adequada para a Administração Pública.\")","v":"Declaro para os devidos fins que o regime de Contribuição Previdenciária sobre a Receita Bruta adotado para elaboração do orçamento foi SEM Desoneração, e que esta é a alternativa mais adequada para a Administração Pública."}]
["Fornecimento de Materiais e Equipamentos (aquisição indireta - em conjunto com licitação de obras)","AC","Fornecimento de Materiais e Equipamentos (aquisição indireta - em conjunto com licitação de obras)-AC",null,1.4999999999999999E-2,3.4500000000000003E-2,4.4900000000000002E-2]
[{"$f":"A38","v":"Fornecimento de Materiais e Equipamentos (aquisição indireta - em conjunto com licitação de obras)"},"SG","Fornecimento de Materiais e Equipamentos (aquisição indireta - em conjunto com licitação de obras)-SG",null,3.0000000000000001E-3,4.7999999999999996E-3,8.199999999999999E-3,null,"Observações:"]
[{"$f":"A39","v":"Fornecimento de Materiais e Equipamentos (aquisição indireta - em conjunto com licitação de obras)"},"R","Fornecimento de Materiais e Equipamentos (aquisição indireta - em conjunto com licitação de obras)-R",null,5.6000000000000008E-3,8.5000000000000006E-3,8.8999999999999999E-3]
[{"$f":"A40","v":"Fornecimento de Materiais e Equipamentos (aquisição indireta - em conjunto com licitação de obras)"},"DF","Fornecimento de Materiais e Equipamentos (aquisição indireta - em conjunto com licitação de obras)-DF",null,8.5000000000000006E-3,8.5000000000000006E-3,1.11E-2]
[{"$f":"A41","v":"Fornecimento de Materiais e Equipamentos (aquisição indireta - em conjunto com licitação de obras)"},"L","Fornecimento de Materiais e Equipamentos (aquisição indireta - em conjunto com licitação de obras)-L",null,3.5000000000000003E-2,5.1100000000000007E-2,6.2199999999999998E-2,null,{"$f":"PO!K38","v":"Tunápolis/SC"},null,null,null,null,null,{"$f":"PO!K41","v":"2020-10-20"}]
[{"$f":"A42","v":"Fornecimento de Materiais e Equipamentos (aquisição indireta - em conjunto com licitação de obras)"},"BDI PAD","Fornecimento de Materiais e Equipamentos (aquisição indireta - em conjunto com licitação de obras)-BDI PAD",null,0.111,0.14019999999999999,0.16800000000000001,null,"Local",null,null,null,null,null,"Data"]
["Estudos e Projetos, Planos e Gerenciamento e outros correlatos","K1","Estudos e Projetos, Planos e Gerenciamento e outros correlatos-K1",null,"-","-","-"]
[{"$f":"A44","v":"Estudos e Projetos, Planos e Gerenciamento e outros correlatos"},"K2","Estudos e Projetos, Planos e Gerenciamento e outros correlatos-K2",null,"-",0.2,"-"]
[{"$f":"A45","v":"Estudos e Projetos, Planos e Gerenciamento e outros correlatos"},"","Estudos e Projetos, Planos e Gerenciamento e outros correlatos-",null,"-","-","-",null,"Responsável Técnico",null,null,null,null,null,"Responsável Tomador"]
[{"$f":"A46","v":"Estudos e Projetos, Planos e Gerenciamento e outros correlatos"},"","Estudos e Projetos, Planos e Gerenciamento e outros correlatos-",null,"-","-","-",null,"Nome:",{"$f":"DADOS!B54","v":"Leonardo Ives Massing Moreira "},null,null,null,null,"Nome:","Renato Paulata"]
[{"$f":"A47","v":"Estudos e Projetos, Planos e Gerenciamento e outros correlatos"},"K3","Estudos e Projetos, Planos e Gerenciamento e outros correlatos-K3",null,"-",0.12,"-",null,"Título:",{"$f":"DADOS!B55","v":"Engenheiro Civil "},null,null,null,null,"Cargo:","Prefeito Municipal"]
[{"$f":"A48","v":"Estudos e Projetos, Planos e Gerenciamento e outros correlatos"},"BDI PAD","Estudos e Projetos, Planos e Gerenciamento e outros correlatos-BDI PAD",null,"-","-","-",null,{"$f":"DADOS!A56","v":"CREA/CAU:"},{"$f":"DADOS!B56","v":"140.221-0"}]
[null,null,null,null,null,null,null,null,{"$f":"DADOS!A57","v":"ART/RRT:"},{"$f":"DADOS!B57","v":0}]
[]
["Construção e Reforma de Edifícios"]
["Construção de Praças Urbanas, Rodovias, Ferrovias e recapeamento e pavimentação de vias urbanas"]
["Construção de Redes de Abastecimento de Água, Coleta de Esgoto"]
["Construção e Manutenção de Estações e Redes de Distribuição de Energia Elétrica"]
["Obras Portuárias, Marítimas e Fluviais"]
["Fornecimento de Materiais e Equipamentos (aquisição indireta - em conjunto com licitação de obras)"]
["Fornecimento de Materiais e Equipamentos (aquisição direta)"]
["Estudos e Projetos, Planos e Gerenciamento e outros correlatos"]

{"sheet":"PO","index":2,"n_rows":42,"n_cols":26,"rows_kept":42,"cut":false,"hidden":false,"merged":[[1,22,1,23],[34,10,34,19],[30,10,32,19],[27,12,27,19],[40,10,40,12],[37,10,37,12]]}
[null,null,null,null,null,null,null,null,null,null,null,null,null,"PO - PLANILHA ORÇAMENTÁRIA",null,null,null,null,null,"Grau de Sigilo"]
[null,"LOTE","Meta","Nível 2","Nível 3","Nível 4","Serviço",null,null,null,null,null,null,{"$f":"CHOOSE(1+LOG(1+2*(TipoOrçamento=\"BASE\")+4*(TipoOrçamento=\"LICITADO\")+8*(TipoOrçamento=\"REPROGRAMADOAC\")+16*(TipoOrçamento=\"REPROGRAMADONPL\"),2),\"nada\",\"Orçamento Base para Licitação\",\"Orçamento Licitado\",\"Orçamento Licitado Reprogramado\",\"Orçamento Base para Licitação - Reprogramado\")","v":"Orçamento Base para Licitação"},null,null,null,null,null,"#PUBLICO",null,null,"Arredondamento"]
[null,null,null,null,null,null,null,null,null,null,null,null,null,null,null,null,null,null,null,null,null,null,"Quantidade",true]
["Nmax",null,null,null,null,null,null,null,null,null,null,null,null,null,null,null,null,null,null,null,"ERRO GERAL",null,"Custo Unitáro",true]
[{"$f":"MAX($A$12:$A$27)","v":2},null,null,null,null,null,null,null,null,null,null,null,null,null,null,null,null,null,null,null,{"$f":"IF(COUNTIF($U$12:OFFSET($U$27,-1,0),\"DESCRIÇÃO\")+COUNTIF($U$12:OFFSET($U$27,-1,0),\"UNIDADE\")+COUNTIF($U$12:OFFSET($U$27,-1,0),\"SEM VALOR\")>0,\"NÃO OK\",\"OK\")","v":"NÃO OK"},"","BDI",true]
[null,null,null,null,null,null,null,null,null,null,null,null,null,null,null,null,null,null,null,null,null,null,"Preço Unitário",true]
[null,null,null,null,null,null,null,null,null,null,null,null,null,null,null,null,null,null,null,null,null,null,"Preço Total",true]
[]
[null,null,null,null,null,null,null,null,null,null,null,null,null,null,null,{"$f":"OFFSET(PLQ!$E$12,ROW($P9)-ROW(P$12),0)","v":"-"}]
["Nível","Altura","n1","n2","n3","n4","n5","Czero","Cnível","Nível","Item","Fonte","Código","Descrição","Unidade","Quantidade",{"$f":"IF(OR(TipoOrçamento=\"LICITADO\",TipoOrçamento=\"REPROGRAMADOAC\"),\"Preço Unitário (R$)\",\"Custo Unitário (R$)\")","v":"Custo Unitário (R$)"},"BDI\n(%)","Preço Unitário (R$)","Preço Total\n(R$)","Erro de Dados","Lista Crono","Concatenação Fonte-Código","BancoRef",{"$f":"IF(TipoOrçamento=\"LICITADO\",\"Preço Unitário Edital (R$)\",\"Custo Unitário Referência (R$)\")","v":"Custo Unitário Referência (R$)"},{"$f":"IF(TipoOrçamento=\"LICITADO\",\"Valor BDI Edital\",\"Valor BDI\")","v":"Valor BDI"}]
[{"$f":"CHOOSE(1+LOG(1+2*(J11=\"Meta\")+4*(J11=\"Nível 2\")+8*(J11=\"Nível 3\")+16*(J11=\"Nível 4\")+32*(J11=\"Serviço\"),2),0,1,2,3,4,\"S\")","v":"S"},{"$f":"IF(OR(A11=\"S\",A11=0),0,IF(ISERROR(I11),H11,SMALL(H11:I11,1)))","v":0},{"$f":"IF($A11=1,OFFSET(C11,-1,0)+1,OFFSET(C11,-1,0))","v":"n1"},{"$f":"IF($A11=1,0,IF($A11=2,OFFSET(D11,-1,0)+1,OFFSET(D11,-1,0)))","v":"n2"},{"$f":"IF(AND($A11<=2,$A11<>0),0,IF($A11=3,OFFSET(E11,-1,0)+1,OFFSET(E11,-1,0)))","v":"n3"},{"$f":"IF(AND($A11<=3,$A11<>0),0,IF($A11=4,OFFSET(F11,-1,0)+1,OFFSET(F11,-1,0)))","v":"n4"},{"$f":"IF(AND($A11<=4,$A11<>0),0,IF($A11=\"S\",OFFSET(G11,-1,0)+1,OFFSET(G11,-1,0)))","v":{"$error":"#VALUE!"}},{"$f":"IF(OR($A11=\"S\",$A11=0),0,MATCH(0,OFFSET($B11,1,$A11,ROW($A$27)-ROW($A11)),0))","v":0},{"$f":"IF(OR($A11=\"S\",$A11=0),0,MATCH(OFFSET($B11,0,$A11)+1,OFFSET($B11,1,$A11,ROW($A$27)-ROW($A11)),0))","v":0},"Serviço",{"$f":"IF($A11=0,\"-\",CONCATENATE(C11&\".\",IF(AND($A$5>=2,$A11>=2),D11&\".\",\"\"),IF(AND($A$5>=3,$A11>=3),E11&\".\",\"\"),IF(AND($A$5>=4,$A11>=4),F11&\".\",\"\"),IF($A11=\"S\",G11&\".\",\"\")))","v":{"$error":"#VALUE!"}},null,null,{"$f":"IF($A11=\"S\",Referencia.Descricao,\"(digite a descrição aqui)\")","v":""},{"$f":"Referencia.Unidade","v":""},null,null,"BDI 1",{"$f":"IF($A11=\"S\",IF($Q$10=\"Preço Unitário (R$)\",PO.CustoUnitario,ROUND(PO.CustoUnitario*(1+$Z11),15-13*$X$6)),0)","v":0},{"$f":"IF($A11=\"S\",VTOTAL1,IF($A11=0,0,ROUND(SomaAgrup,15-13*$X$7)))","v":0},{"$f":"IF($J11=\"\",\"\",IF($N11=\"\",\"DESCRIÇÃO\",IF(AND($J11=\"Serviço\",$O11=\"\"),\"UNIDADE\",IF($T11<=0,\"SEM VALOR\",IF(AND($Y11<>\"\",$Q11>$Y11),\"ACIMA REF.\",\"\")))))","v":"DESCRIÇÃO"},{"$f":"IF(OR($A11=0,$A11=\"S\",$A11>CFF!$A$9),\"\",MAX(V$12:OFFSET(V11,-1,0))+1)","v":""},{"$f":"IF(AND($J11=\"Serviço\",$M11<>\"\"),IF($L11=\"\",$M11,CONCATENATE($L11,\"-\",$M11)))","v":false},{"$f":"IF(AND(Fonte<>\"\",Código<>\"\"),MATCH(Fonte&\" \"&IF(Fonte=\"sinapi\",SUBSTITUTE(SUBSTITUTE(Código,\"/00\",\"/\"),\"/0\",\"/\"),Código),INDIRECT(\"'[Referência \"&_xlnm.Database&\".xls]Banco'!$a:$a\"),0),\"X\")","v":"X"},{"$f":"IF(Import.Desoneracao=\"sim\",Referencia.Desonerado,Referencia.NaoDesonerado)","v":0},{"$f":"ROUND(IF(ISNUMBER(R11),R11,IF(LEFT(R11,3)=\"BDI\",HLOOKUP(R11,DADOS!$T$37:$X$38,2,FALSE),0)),15-11*$X$5)","v":0.22}]
[0,{"$f":"COUNTA(OFFSET(B12,1,0):B$27)","v":14},null,null,null,null,null,null,null,{"$f":"IF(OR(TipoOrçamento=\"LICITADO\",TipoOrçamento=\"REPROGRAMADOAC\"),\"CTEF\",\"LOTE\")","v":"LOTE"},0,null,null,{"$f":"IF(TipoOrçamento=\"LICITADO\",DADOS!O43,DADOS!G38)","v":0},null,null,null,null,null,{"$f":"SUMIF(OFFSET($J12,1,0,ROW(T27)-ROW(T12)-1),\"Serviço\",OFFSET(T12,1,0,ROW(T27)-ROW(T12)-1))","v":161021.21},{"$f":"IF($N12=0,\"DESCRIÇÃO\",\"\")","v":"DESCRIÇÃO"},0]
[{"$f":"CHOOSE(1+LOG(1+2*(J13=\"Meta\")+4*(J13=\"Nível 2\")+8*(J13=\"Nível 3\")+16*(J13=\"Nível 4\")+32*(J13=\"Serviço\"),2),0,1,2,3,4,\"S\")","v":1},{"$f":"IF(OR(A13=\"S\",A13=0),0,IF(ISERROR(I13),H13,SMALL(H13:I13,1)))","v":14},{"$f":"IF($A13=1,OFFSET(C13,-1,0)+1,OFFSET(C13,-1,0))","v":1},{"$f":"IF($A13=1,0,IF($A13=2,OFFSET(D13,-1,0)+1,OFFSET(D13,-1,0)))","v":0},{"$f":"IF(AND($A13<=2,$A13<>0),0,IF($A13=3,OFFSET(E13,-1,0)+1,OFFSET(E13,-1,0)))","v":0},{"$f":"IF(AND($A13<=3,$A13<>0),0,IF($A13=4,OFFSET(F13,-1,0)+1,OFFSET(F13,-1,0)))","v":0},{"$f":"IF(AND($A13<=4,$A13<>0),0,IF($A13=\"S\",OFFSET(G13,-1,0)+1,OFFSET(G13,-1,0)))","v":0},{"$f":"IF(OR($A13=\"S\",$A13=0),0,MATCH(0,OFFSET($B13,1,$A13,ROW($A$27)-ROW($A13)),0))","v":14},{"$f":"IF(OR($A13=\"S\",$A13=0),0,MATCH(OFFSET($B13,0,$A13)+1,OFFSET($B13,1,$A13,ROW($A$27)-ROW($A13)),0))","v":{"$error":"#N/A"}},"Meta",{"$f":"IF($A13=0,\"-\",CONCATENATE(C13&\".\",IF(AND($A$5>=2,$A13>=2),D13&\".\",\"\"),IF(AND($A$5>=3,$A13>=3),E13&\".\",\"\"),IF(AND($A$5>=4,$A13>=4),F13&\".\",\"\"),IF($A13=\"S\",G13&\".\",\"\")))","v":"1."},null,null,"RUA SÃO LOURENÇO ","",0,null,"BDI 1",{"$f":"IF($A13=\"S\",IF($Q$10=\"Preço Unitário (R$)\",PO.CustoUnitario,ROUND(PO.CustoUnitario*(1+$Z13),15-13*$X$6)),0)","v":0},{"$f":"IF($A13=\"S\",VTOTAL1,IF($A13=0,0,ROUND(SomaAgrup,15-13*$X$7)))","v":161021.21},{"$f":"IF($J13=\"\",\"\",IF($N13=\"\",\"DESCRIÇÃO\",IF(AND($J13=\"Serviço\",$O13=\"\"),\"UNIDADE\",IF($T13<=0,\"SEM VALOR\",IF(AND($Y13<>\"\",$Q13>$Y13),\"ACIMA REF.\",\"\")))))","v":""},{"$f":"IF(OR($A13=0,$A13=\"S\",$A13>CFF!$A$9),\"\",MAX(V$12:OFFSET(V13,-1,0))+1)","v":1},{"$f":"IF(AND($J13=\"Serviço\",$M13<>\"\"),IF($L13=\"\",$M13,CONCATENATE($L13,\"-\",$M13)))","v":false},{"$f":"IF(AND(Fonte<>\"\",Código<>\"\"),MATCH(Fonte&\" \"&IF(Fonte=\"sinapi\",SUBSTITUTE(SUBSTITUTE(Código,\"/00\",\"/\"),\"/0\",\"/\"),Código),INDIRECT(\"'[Referência \"&_xlnm.Database&\".xls]Banco'!$a:$a\"),0),\"X\")","v":"X"},{"$f":"IF(Import.Desoneracao=\"sim\",Referencia.Desonerado,Referencia.NaoDesonerado)","v":0},{"$f":"ROUND(IF(ISNUMBER(R13),R13,IF(LEFT(R13,3)=\"BDI\",HLOOKUP(R13,DADOS!$T$37:$X$38,2,FALSE),0)),15-11*$X$5)","v":0.22}]
["S",0,1,0,0,0,1,{"$f":"IF(OR($A14=\"S\",$A14=0),0,MATCH(0,OFFSET($B14,1,$A14,ROW($A$27)-ROW($A14)),0))","v":0},{"$f":"IF(OR($A14=\"S\",$A14=0),0,MATCH(OFFSET($B14,0,$A14)+1,OFFSET($B14,1,$A14,ROW($A$27)-ROW($A14)),0))","v":0},"Serviço","1.0.1.",null,null,"PAVIMENTAÇÃO  ASFÁLTICA SOBRE PEDRAS IRREGULARES","",0,null,"BDI 1",0,0,"UNIDADE",{"$f":"IF(OR($A14=0,$A14=\"S\",$A14>CFF!$A$9),\"\",MAX(V$12:OFFSET(V14,-1,0))+1)","v":""},false,"X",0,{"$f":"ROUND(IF(ISNUMBER(R14),R14,IF(LEFT(R14,3)=\"BDI\",HLOOKUP(R14,DADOS!$T$37:$X$38,2,FALSE),0)),15-11*$X$5)","v":0.22}]
[2,2,1,1,0,0,0,{"$f":"IF(OR($A15=\"S\",$A15=0),0,MATCH(0,OFFSET($B15,1,$A15,ROW($A$27)-ROW($A15)),0))","v":12},{"$f":"IF(OR($A15=\"S\",$A15=0),0,MATCH(OFFSET($B15,0,$A15)+1,OFFSET($B15,1,$A15,ROW($A$27)-ROW($A15)),0))","v":2},"Nível 2","1.1.",null,null,"SERVIÇOS PRELIMINARES ","",0,null,"BDI 1",0,4462.57,"",{"$f":"IF(OR($A15=0,$A15=\"S\",$A15>CFF!$A$9),\"\",MAX(V$12:OFFSET(V15,-1,0))+1)","v":""},false,"X",0,{"$f":"ROUND(IF(ISNUMBER(R15),R15,IF(LEFT(R15,3)=\"BDI\",HLOOKUP(R15,DADOS!$T$37:$X$38,2,FALSE),0)),15-11*$X$5)","v":0.22}]
[{"$f":"CHOOSE(1+LOG(1+2*(J16=\"Meta\")+4*(J16=\"Nível 2\")+8*(J16=\"Nível 3\")+16*(J16=\"Nível 4\")+32*(J16=\"Serviço\"),2),0,1,2,3,4,\"S\")","v":"S"},{"$f":"IF(OR(A16=\"S\",A16=0),0,IF(ISERROR(I16),H16,SMALL(H16:I16,1)))","v":0},{"$f":"IF($A16=1,OFFSET(C16,-1,0)+1,OFFSET(C16,-1,0))","v":1},{"$f":"IF($A16=1,0,IF($A16=2,OFFSET(D16,-1,0)+1,OFFSET(D16,-1,0)))","v":1},{"$f":"IF(AND($A16<=2,$A16<>0),0,IF($A16=3,OFFSET(E16,-1,0)+1,OFFSET(E16,-1,0)))","v":0},{"$f":"IF(AND($A16<=3,$A16<>0),0,IF($A16=4,OFFSET(F16,-1,0)+1,OFFSET(F16,-1,0)))","v":0},{"$f":"IF(AND($A16<=4,$A16<>0),0,IF($A16=\"S\",OFFSET(G16,-1,0)+1,OFFSET(G16,-1,0)))","v":1},{"$f":"IF(OR($A16=\"S\",$A16=0),0,MATCH(0,OFFSET($B16,1,$A16,ROW($A$27)-ROW($A16)),0))","v":0},{"$f":"IF(OR($A16=\"S\",$A16=0),0,MATCH(OFFSET($B16,0,$A16)+1,OFFSET($B16,1,$A16,ROW($A$27)-ROW($A16)),0))","v":0},"Serviço",{"$f":"IF($A16=0,\"-\",CONCATENATE(C16&\".\",IF(AND($A$5>=2,$A16>=2),D16&\".\",\"\"),IF(AND($A$5>=3,$A16>=3),E16&\".\",\"\"),IF(AND($A$5>=4,$A16>=4),F16&\".\",\"\"),IF($A16=\"S\",G16&\".\",\"\")))","v":"1.1.1."},"SINAPI","99814",{"$f":"IF($A16=\"S\",Referencia.Descricao,\"(digite a descrição aqui)\")","v":"LIMPEZA DE SUPERFÍCIE COM JATO DE ALTA PRESSÃO. AF_04/2019"},{"$f":"Referencia.Unidade","v":"M2"},2386.4,1.53,"BDI 1",{"$f":"IF($A16=\"S\",IF($Q$10=\"Preço Unitário (R$)\",PO.CustoUnitario,ROUND(PO.CustoUnitario*(1+$Z16),15-13*$X$6)),0)","v":1.87},{"$f":"IF($A16=\"S\",VTOTAL1,IF($A16=0,0,ROUND(SomaAgrup,15-13*$X$7)))","v":4462.57},{"$f":"IF($J16=\"\",\"\",IF($N16=\"\",\"DESCRIÇÃO\",IF(AND($J16=\"Serviço\",$O16=\"\"),\"UNIDADE\",IF($T16<=0,\"SEM VALOR\",IF(AND($Y16<>\"\",$Q16>$Y16),\"ACIMA REF.\",\"\")))))","v":""},{"$f":"IF(OR($A16=0,$A16=\"S\",$A16>CFF!$A$9),\"\",MAX(V$12:OFFSET(V16,-1,0))+1)","v":""},{"$f":"IF(AND($J16=\"Serviço\",$M16<>\"\"),IF($L16=\"\",$M16,CONCATENATE($L16,\"-\",$M16)))","v":"SINAPI-99814"},{"$f":"IF(AND(Fonte<>\"\",Código<>\"\"),MATCH(Fonte&\" \"&IF(Fonte=\"sinapi\",SUBSTITUTE(SUBSTITUTE(Código,\"/00\",\"/\"),\"/0\",\"/\"),Código),INDIRECT(\"'[Referência \"&_xlnm.Database&\".xls]Banco'!$a:$a\"),0),\"X\")","v":6022},{"$f":"IF(Import.Desoneracao=\"sim\",Referencia.Desonerado,Referencia.NaoDesonerado)","v":1.53},{"$f":"ROUND(IF(ISNUMBER(R16),R16,IF(LEFT(R16,3)=\"BDI\",HLOOKUP(R16,DADOS!$T$37:$X$38,2,FALSE),0)),15-11*$X$5)","v":0.22}]
[2,6,1,2,0,0,0,{"$f":"IF(OR($A17=\"S\",$A17=0),0,MATCH(0,OFFSET($B17,1,$A17,ROW($A$27)-ROW($A17)),0))","v":10},{"$f":"IF(OR($A17=\"S\",$A17=0),0,MATCH(OFFSET($B17,0,$A17)+1,OFFSET($B17,1,$A17,ROW($A$27)-ROW($A17)),0))","v":6},"Nível 2","1.2.",null,null,"PAVIMENTAÇÃO  ","",0,null,"BDI 1",0,154245.84,"",{"$f":"IF(OR($A17=0,$A17=\"S\",$A17>CFF!$A$9),\"\",MAX(V$12:OFFSET(V17,-1,0))+1)","v":""},false,"X",0,{"$f":"ROUND(IF(ISNUMBER(R17),R17,IF(LEFT(R17,3)=\"BDI\",HLOOKUP(R17,DADOS!$T$37:$X$38,2,FALSE),0)),15-11*$X$5)","v":0.22}]
["S",0,1,2,0,0,1,{"$f":"IF(OR($A18=\"S\",$A18=0),0,MATCH(0,OFFSET($B18,1,$A18,ROW($A$27)-ROW($A18)),0))","v":0},{"$f":"IF(OR($A18=\"S\",$A18=0),0,MATCH(OFFSET($B18,0,$A18)+1,OFFSET($B18,1,$A18,ROW($A$27)-ROW($A18)),0))","v":0},"Serviço","1.2.1.","SINAPI","96402","Pintura de Ligação com Emulsão RR-2 C taxa de 0,6 L/m²","m²",2386.4,1.4,"BDI 1",1.71,4080.74,"",{"$f":"IF(OR($A18=0,$A18=\"S\",$A18>CFF!$A$9),\"\",MAX(V$12:OFFSET(V18,-1,0))+1)","v":""},"SINAPI-96402",5221,1.69,{"$f":"ROUND(IF(ISNUMBER(R18),R18,IF(LEFT(R18,3)=\"BDI\",HLOOKUP(R18,DADOS!$T$37:$X$38,2,FALSE),0)),15-11*$X$5)","v":0.22}]
["S",0,1,2,0,0,2,{"$f":"IF(OR($A19=\"S\",$A19=0),0,MATCH(0,OFFSET($B19,1,$A19,ROW($A$27)-ROW($A19)),0))","v":0},{"$f":"IF(OR($A19=\"S\",$A19=0),0,MATCH(OFFSET($B19,0,$A19)+1,OFFSET($B19,1,$A19,ROW($A$27)-ROW($A19)),0))","v":0},"Serviço","1.2.2.","SINAPI","95996","Construção de pavimento com aplicação de concreto betuminoso usinado a quente (CBUQ), binder, com espessura de 3,0 cm exclusive transporte. AF_11/2019","m³",71.59,672,"BDI 1",819.84,58692.35,"",{"$f":"IF(OR($A19=0,$A19=\"S\",$A19>CFF!$A$9),\"\",MAX(V$12:OFFSET(V19,-1,0))+1)","v":""},"SINAPI-95996",5275,863.16,{"$f":"ROUND(IF(ISNUMBER(R19),R19,IF(LEFT(R19,3)=\"BDI\",HLOOKUP(R19,DADOS!$T$37:$X$38,2,FALSE),0)),15-11*$X$5)","v":0.22}]
[{"$f":"CHOOSE(1+LOG(1+2*(J20=\"Meta\")+4*(J20=\"Nível 2\")+8*(J20=\"Nível 3\")+16*(J20=\"Nível 4\")+32*(J20=\"Serviço\"),2),0,1,2,3,4,\"S\")","v":"S"},{"$f":"IF(OR(A20=\"S\",A20=0),0,IF(ISERROR(I20),H20,SMALL(H20:I20,1)))","v":0},{"$f":"IF($A20=1,OFFSET(C20,-1,0)+1,OFFSET(C20,-1,0))","v":1},{"$f":"IF($A20=1,0,IF($A20=2,OFFSET(D20,-1,0)+1,OFFSET(D20,-1,0)))","v":2},{"$f":"IF(AND($A20<=2,$A20<>0),0,IF($A20=3,OFFSET(E20,-1,0)+1,OFFSET(E20,-1,0)))","v":0},{"$f":"IF(AND($A20<=3,$A20<>0),0,IF($A20=4,OFFSET(F20,-1,0)+1,OFFSET(F20,-1,0)))","v":0},{"$f":"IF(AND($A20<=4,$A20<>0),0,IF($A20=\"S\",OFFSET(G20,-1,0)+1,OFFSET(G20,-1,0)))","v":3},{"$f":"IF(OR($A20=\"S\",$A20=0),0,MATCH(0,OFFSET($B20,1,$A20,ROW($A$27)-ROW($A20)),0))","v":0},{"$f":"IF(OR($A20=\"S\",$A20=0),0,MATCH(OFFSET($B20,0,$A20)+1,OFFSET($B20,1,$A20,ROW($A$27)-ROW($A20)),0))","v":0},"Serviço",{"$f":"IF($A20=0,\"-\",CONCATENATE(C20&\".\",IF(AND($A$5>=2,$A20>=2),D20&\".\",\"\"),IF(AND($A$5>=3,$A20>=3),E20&\".\",\"\"),IF(AND($A$5>=4,$A20>=4),F20&\".\",\"\"),IF($A20=\"S\",G20&\".\",\"\")))","v":"1.2.3."},"SINAPI","96402","Pintura de Ligação com Emulsão RR-2 C taxa de 0,6 L/m²","m²",2386.4,1.4,"BDI 1",{"$f":"IF($A20=\"S\",IF($Q$10=\"Preço Unitário (R$)\",PO.CustoUnitario,ROUND(PO.CustoUnitario*(1+$Z20),15-13*$X$6)),0)","v":1.71},{"$f":"IF($A20=\"S\",VTOTAL1,IF($A20=0,0,ROUND(SomaAgrup,15-13*$X$7)))","v":4080.74},{"$f":"IF($J20=\"\",\"\",IF($N20=\"\",\"DESCRIÇÃO\",IF(AND($J20=\"Serviço\",$O20=\"\"),\"UNIDADE\",IF($T20<=0,\"SEM VALOR\",IF(AND($Y20<>\"\",$Q20>$Y20),\"ACIMA REF.\",\"\")))))","v":""},{"$f":"IF(OR($A20=0,$A20=\"S\",$A20>CFF!$A$9),\"\",MAX(V$12:OFFSET(V20,-1,0))+1)","v":""},{"$f":"IF(AND($J20=\"Serviço\",$M20<>\"\"),IF($L20=\"\",$M20,CONCATENATE($L20,\"-\",$M20)))","v":"SINAPI-96402"},{"$f":"IF(AND(Fonte<>\"\",Código<>\"\"),MATCH(Fonte&\" \"&IF(Fonte=\"sinapi\",SUBSTITUTE(SUBSTITUTE(Código,\"/00\",\"/\"),\"/0\",\"/\"),Código),INDIRECT(\"'[Referência \"&_xlnm.Database&\".xls]Banco'!$a:$a\"),0),\"X\")","v":5221},{"$f":"IF(Import.Desoneracao=\"sim\",Referencia.Desonerado,Referencia.NaoDesonerado)","v":1.69},{"$f":"ROUND(IF(ISNUMBER(R20),R20,IF(LEFT(R20,3)=\"BDI\",HLOOKUP(R20,DADOS!$T$37:$X$38,2,FALSE),0)),15-11*$X$5)","v":0.22}]
["S",0,1,2,0,0,4,{"$f":"IF(OR($A21=\"S\",$A21=0),0,MATCH(0,OFFSET($B21,1,$A21,ROW($A$27)-ROW($A21)),0))","v":0},{"$f":"IF(OR($A21=\"S\",$A21=0),0,MATCH(OFFSET($B21,0,$A21)+1,OFFSET($B21,1,$A21,ROW($A$27)-ROW($A21)),0))","v":0},"Serviço","1.2.4.","SINAPI","95995","Capa Asfáltica em CBUQ espessura de 4 cm","m³",95.46,722,"BDI 1",880.84,84084.99,"",{"$f":"IF(OR($A21=0,$A21=\"S\",$A21>CFF!$A$9),\"\",MAX(V$12:OFFSET(V21,-1,0))+1)","v":""},"SINAPI-95995",5274,910.22,{"$f":"ROUND(IF(ISNUMBER(R21),R21,IF(LEFT(R21,3)=\"BDI\",HLOOKUP(R21,DADOS!$T$37:$X$38,2,FALSE),0)),15-11*$X$5)","v":0.22}]
["S",0,1,2,0,0,5,{"$f":"IF(OR($A22=\"S\",$A22=0),0,MATCH(0,OFFSET($B22,1,$A22,ROW($A$27)-ROW($A22)),0))","v":0},{"$f":"IF(OR($A22=\"S\",$A22=0),0,MATCH(OFFSET($B22,0,$A22)+1,OFFSET($B22,1,$A22,ROW($A$27)-ROW($A22)),0))","v":0},"Serviço","1.2.5.","SINAPI","95427","Transporte comercial com caminhão basculante  18 m³, via pavimentada DMT acima de 30Km (unidade:m³xKm). AF_09/2016 DMT=43km","m³xKm",7189.17,0.38,"BDI 1",0.46,3307.02,"",{"$f":"IF(OR($A22=0,$A22=\"S\",$A22>CFF!$A$9),\"\",MAX(V$12:OFFSET(V22,-1,0))+1)","v":""},"SINAPI-95427",6123,0.4,{"$f":"ROUND(IF(ISNUMBER(R22),R22,IF(LEFT(R22,3)=\"BDI\",HLOOKUP(R22,DADOS!$T$37:$X$38,2,FALSE),0)),15-11*$X$5)","v":0.22}]
[2,2,1,3,0,0,0,{"$f":"IF(OR($A23=\"S\",$A23=0),0,MATCH(0,OFFSET($B23,1,$A23,ROW($A$27)-ROW($A23)),0))","v":4},{"$f":"IF(OR($A23=\"S\",$A23=0),0,MATCH(OFFSET($B23,0,$A23)+1,OFFSET($B23,1,$A23,ROW($A$27)-ROW($A23)),0))","v":2},"Nível 2","1.3.",null,null,"PINTURA E SINALIZAÇÃO ","",0,null,"BDI 1",0,1812.62,"",{"$f":"IF(OR($A23=0,$A23=\"S\",$A23>CFF!$A$9),\"\",MAX(V$12:OFFSET(V23,-1,0))+1)","v":""},false,"X",0,{"$f":"ROUND(IF(ISNUMBER(R23),R23,IF(LEFT(R23,3)=\"BDI\",HLOOKUP(R23,DADOS!$T$37:$X$38,2,FALSE),0)),15-11*$X$5)","v":0.22}]
["S",0,1,3,0,0,1,{"$f":"IF(OR($A24=\"S\",$A24=0),0,MATCH(0,OFFSET($B24,1,$A24,ROW($A$27)-ROW($A24)),0))","v":0},{"$f":"IF(OR($A24=\"S\",$A24=0),0,MATCH(OFFSET($B24,0,$A24)+1,OFFSET($B24,1,$A24,ROW($A$27)-ROW($A24)),0))","v":0},"Serviço","1.3.1.","SINAPI","72947","Pintura de faixa de pedestres e sinalização horizontal com tinta retrorefletiva a base de resina acrilica com microesferas de vidro","m²",141.5,10.5,"BDI 1",12.81,1812.62,"",{"$f":"IF(OR($A24=0,$A24=\"S\",$A24>CFF!$A$9),\"\",MAX(V$12:OFFSET(V24,-1,0))+1)","v":""},"SINAPI-72947",5272,12.95,{"$f":"ROUND(IF(ISNUMBER(R24),R24,IF(LEFT(R24,3)=\"BDI\",HLOOKUP(R24,DADOS!$T$37:$X$38,2,FALSE),0)),15-11*$X$5)","v":0.22}]
[2,2,1,4,0,0,0,{"$f":"IF(OR($A25=\"S\",$A25=0),0,MATCH(0,OFFSET($B25,1,$A25,ROW($A$27)-ROW($A25)),0))","v":2},{"$f":"IF(OR($A25=\"S\",$A25=0),0,MATCH(OFFSET($B25,0,$A25)+1,OFFSET($B25,1,$A25,ROW($A$27)-ROW($A25)),0))","v":{"$error":"#N/A"}},"Nível 2","1.4.",null,null,"SERVIÇOS COMPLEMENTARES - LIMPEZA FINAL DE OBRA ","",0,null,"BDI 1",0,500.18,"",{"$f":"IF(OR($A25=0,$A25=\"S\",$A25>CFF!$A$9),\"\",MAX(V$12:OFFSET(V25,-1,0))+1)","v":""},false,"X",0,{"$f":"ROUND(IF(ISNUMBER(R25),R25,IF(LEFT(R25,3)=\"BDI\",HLOOKUP(R25,DADOS!$T$37:$X$38,2,FALSE),0)),15-11*$X$5)","v":0.22}]
["S",0,1,4,0,0,1,{"$f":"IF(OR($A26=\"S\",$A26=0),0,MATCH(0,OFFSET($B26,1,$A26,ROW($A$27)-ROW($A26)),0))","v":0},{"$f":"IF(OR($A26=\"S\",$A26=0),0,MATCH(OFFSET($B26,0,$A26)+1,OFFSET($B26,1,$A26,ROW($A$27)-ROW($A26)),0))","v":0},"Serviço","1.4.1.","SINAPI","5901","Caminhão Pipa, 10.000 L,  inclusive tanque de aço para o transporte de água. ","chp ",2.62,156.47999999999999,"BDI 1",190.91,500.18,"",{"$f":"IF(OR($A26=0,$A26=\"S\",$A26>CFF!$A$9),\"\",MAX(V$12:OFFSET(V26,-1,0))+1)","v":""},"SINAPI-5901",335,166.2,{"$f":"ROUND(IF(ISNUMBER(R26),R26,IF(LEFT(R26,3)=\"BDI\",HLOOKUP(R26,DADOS!$T$37:$X$38,2,FALSE),0)),15-11*$X$5)","v":0.22}]
[-1,null,0,0,0,0,0]
[null,null,null,null,null,null,null,null,null,null,"Encargos sociais:",null,"Para elaboração deste orçamento, foram utilizados os encargos sociais do SINAPI para a Unidade da Federação indicada."]
[]
[null,null,null,null,null,null,null,null,null,null,"Observações:"]
[]
[]
[]
[]
[null,null,null,null,null,null,null,null,null,null,{"$f":"IF(AND($X$3=FALSE,$X$4=FALSE,$X$5=FALSE,$X$6=FALSE,$X$7=FALSE),\"Não foi considerado arredondamento nos valores da planilha.\",CONCATENATE(\"Foi considerado arredondamento de duas casas decimais para \",IF($X$3=TRUE,\"Quantidade; \",\"\"),IF($X$4=TRUE,\"Custo Unitário; \",\"\"),IF($X$5=TRUE,\"BDI; \",\"\"),IF($X$6=TRUE,\"Preço Unitário; \",\"\"),IF($X$7=TRUE,\"Preço Total.\",\"\")))","v":"Foi considerado arredondamento de duas casas decimais para Quantidade; Custo Unitário; BDI; Preço Unitário; Preço Total."}]
[]
[]
[null,null,null,null,null,null,null,null,null,null,{"$f":"Import.Município","v":"Tunápolis/SC"}]
[null,null,null,null,null,null,null,null,null,null,"Local"]
[]
[null,null,null,null,null,null,null,null,null,null,{"$f":"TODAY()","v":"2020-10-20"}]
[null,null,null,null,null,null,null,null,null,null,"Data"]

{"sheet":"PLQ","index":3,"n_rows":33,"n_cols":21,"rows_kept":33,"cut":false,"hidden":true,"merged":[[28,1,28,2],[31,1,31,2]]}
[null,null,null,null,"PLQ -","PLANILHA DE LEVANTAMENTO DE QUANTIDADES"]
[]
[]
[]
[]
[]
[null,null,null,null,{"$f":"OFFSET(PO!$P$12,ROW($E7)-ROW(E$12),0)","v":0}]
[]
[null,null,null,null,"-","Única"]
["Nível","Item","Descrição","Unid.","Quantidade",{"$f":"IF(OFFSET(F10,0,-1)=\"Quantidade\",1,OFFSET(F10,0,-1)+1)","v":1},2,3,4,5,6,7,8,9,10,null,null,null,null,null,{"$f":"IF(OFFSET(U10,0,-1)=\"Quantidade\",1,OFFSET(U10,0,-1)+1)","v":1}]
[{"$f":"OFFSET(PO!J$12,ROW(A11)-ROW($A$12),0)","v":"Serviço"},{"$f":"IF($A11=0,\"\",OFFSET(PO!K$12,ROW(B11)-ROW(B$12),0))","v":{"$error":"#VALUE!"}},{"$f":"IF(OFFSET(PO!N$12,ROW(C11)-ROW(C$12),0)=0,\"\",OFFSET(PO!N$12,ROW(C11)-ROW(C$12),0))","v":""},{"$f":"IF(OFFSET(PO!O$12,ROW(D11)-ROW(D$12),0)=0,\"\",OFFSET(PO!O$12,ROW(D11)-ROW(D$12),0))","v":""},{"$f":"IF($A11<>\"Serviço\",0,ROUND(SUMIF($F$9:$P$9,\"<>\",$F11:$P11),15-13*PO!$X$3))","v":0},{"$f":"OFFSET(PO!$P$12,ROW($E11)-ROW(F$12),0)","v":0}]
[{"$f":"PO!J12","v":"LOTE"},null,{"$f":"PO!N12","v":0}]
[{"$f":"OFFSET(PO!J$12,ROW(A13)-ROW($A$12),0)","v":"Meta"},{"$f":"IF($A13=0,\"\",OFFSET(PO!K$12,ROW(B13)-ROW(B$12),0))","v":"1."},{"$f":"IF(OFFSET(PO!N$12,ROW(C13)-ROW(C$12),0)=0,\"\",OFFSET(PO!N$12,ROW(C13)-ROW(C$12),0))","v":"RUA SÃO LOURENÇO "},{"$f":"IF(OFFSET(PO!O$12,ROW(D13)-ROW(D$12),0)=0,\"\",OFFSET(PO!O$12,ROW(D13)-ROW(D$12),0))","v":""},{"$f":"IF($A13<>\"Serviço\",0,ROUND(SUMIF($F$9:$P$9,\"<>\",$F13:$P13),15-13*PO!$X$3))","v":0},0]
[{"$f":"OFFSET(PO!J$12,ROW(A14)-ROW($A$12),0)","v":"Serviço"},{"$f":"IF($A14=0,\"\",OFFSET(PO!K$12,ROW(B14)-ROW(B$12),0))","v":"1.0.1."},{"$f":"IF(OFFSET(PO!N$12,ROW(C14)-ROW(C$12),0)=0,\"\",OFFSET(PO!N$12,ROW(C14)-ROW(C$12),0))","v":"PAVIMENTAÇÃO  ASFÁLTICA SOBRE PEDRAS IRREGULARES"},{"$f":"IF(OFFSET(PO!O$12,ROW(D14)-ROW(D$12),0)=0,\"\",OFFSET(PO!O$12,ROW(D14)-ROW(D$12),0))","v":""},{"$f":"IF($A14<>\"Serviço\",0,ROUND(SUMIF($F$9:$P$9,\"<>\",$F14:$P14),15-13*PO!$X$3))","v":0},0]
[{"$f":"OFFSET(PO!J$12,ROW(A15)-ROW($A$12),0)","v":"Nível 2"},{"$f":"IF($A15=0,\"\",OFFSET(PO!K$12,ROW(B15)-ROW(B$12),0))","v":"1.1."},{"$f":"IF(OFFSET(PO!N$12,ROW(C15)-ROW(C$12),0)=0,\"\",OFFSET(PO!N$12,ROW(C15)-ROW(C$12),0))","v":"SERVIÇOS PRELIMINARES "},{"$f":"IF(OFFSET(PO!O$12,ROW(D15)-ROW(D$12),0)=0,\"\",OFFSET(PO!O$12,ROW(D15)-ROW(D$12),0))","v":""},{"$f":"IF($A15<>\"Serviço\",0,ROUND(SUMIF($F$9:$P$9,\"<>\",$F15:$P15),15-13*PO!$X$3))","v":0},0]
[{"$f":"OFFSET(PO!J$12,ROW(A16)-ROW($A$12),0)","v":"Serviço"},{"$f":"IF($A16=0,\"\",OFFSET(PO!K$12,ROW(B16)-ROW(B$12),0))","v":"1.1.1."},{"$f":"IF(OFFSET(PO!N$12,ROW(C16)-ROW(C$12),0)=0,\"\",OFFSET(PO!N$12,ROW(C16)-ROW(C$12),0))","v":"LIMPEZA DE SUPERFÍCIE COM JATO DE ALTA PRESSÃO. AF_04/2019"},{"$f":"IF(OFFSET(PO!O$12,ROW(D16)-ROW(D$12),0)=0,\"\",OFFSET(PO!O$12,ROW(D16)-ROW(D$12),0))","v":"M2"},{"$f":"IF($A16<>\"Serviço\",0,ROUND(SUMIF($F$9:$P$9,\"<>\",$F16:$P16),15-13*PO!$X$3))","v":2386.4},{"$f":"OFFSET(PO!$P$12,ROW($E16)-ROW(F$12),0)","v":2386.4}]
[{"$f":"OFFSET(PO!J$12,ROW(A17)-ROW($A$12),0)","v":"Nível 2"},{"$f":"IF($A17=0,\"\",OFFSET(PO!K$12,ROW(B17)-ROW(B$12),0))","v":"1.2."},{"$f":"IF(OFFSET(PO!N$12,ROW(C17)-ROW(C$12),0)=0,\"\",OFFSET(PO!N$12,ROW(C17)-ROW(C$12),0))","v":"PAVIMENTAÇÃO  "},{"$f":"IF(OFFSET(PO!O$12,ROW(D17)-ROW(D$12),0)=0,\"\",OFFSET(PO!O$12,ROW(D17)-ROW(D$12),0))","v":""},{"$f":"IF($A17<>\"Serviço\",0,ROUND(SUMIF($F$9:$P$9,\"<>\",$F17:$P17),15-13*PO!$X$3))","v":0},0]
[{"$f":"OFFSET(PO!J$12,ROW(A18)-ROW($A$12),0)","v":"Serviço"},{"$f":"IF($A18=0,\"\",OFFSET(PO!K$12,ROW(B18)-ROW(B$12),0))","v":"1.2.1."},{"$f":"IF(OFFSET(PO!N$12,ROW(C18)-ROW(C$12),0)=0,\"\",OFFSET(PO!N$12,ROW(C18)-ROW(C$12),0))","v":"Pintura de Ligação com Emulsão RR-2 C taxa de 0,6 L/m²"},{"$f":"IF(OFFSET(PO!O$12,ROW(D18)-ROW(D$12),0)=0,\"\",OFFSET(PO!O$12,ROW(D18)-ROW(D$12),0))","v":"m²"},{"$f":"IF($A18<>\"Serviço\",0,ROUND(SUMIF($F$9:$P$9,\"<>\",$F18:$P18),15-13*PO!$X$3))","v":1522},1522]
[{"$f":"OFFSET(PO!J$12,ROW(A19)-ROW($A$12),0)","v":"Serviço"},{"$f":"IF($A19=0,\"\",OFFSET(PO!K$12,ROW(B19)-ROW(B$12),0))","v":"1.2.2."},{"$f":"IF(OFFSET(PO!N$12,ROW(C19)-ROW(C$12),0)=0,\"\",OFFSET(PO!N$12,ROW(C19)-ROW(C$12),0))","v":"Construção de pavimento com aplicação de concreto betuminoso usinado a quente (CBUQ), binder, com espessura de 3,0 cm exclusive transporte. AF_11/2019"},{"$f":"IF(OFFSET(PO!O$12,ROW(D19)-ROW(D$12),0)=0,\"\",OFFSET(PO!O$12,ROW(D19)-ROW(D$12),0))","v":"m³"},{"$f":"IF($A19<>\"Serviço\",0,ROUND(SUMIF($F$9:$P$9,\"<>\",$F19:$P19),15-13*PO!$X$3))","v":46.13},46.13]
[{"$f":"OFFSET(PO!J$12,ROW(A20)-ROW($A$12),0)","v":"Serviço"},{"$f":"IF($A20=0,\"\",OFFSET(PO!K$12,ROW(B20)-ROW(B$12),0))","v":"1.2.3."},{"$f":"IF(OFFSET(PO!N$12,ROW(C20)-ROW(C$12),0)=0,\"\",OFFSET(PO!N$12,ROW(C20)-ROW(C$12),0))","v":"Pintura de Ligação com Emulsão RR-2 C taxa de 0,6 L/m²"},{"$f":"IF(OFFSET(PO!O$12,ROW(D20)-ROW(D$12),0)=0,\"\",OFFSET(PO!O$12,ROW(D20)-ROW(D$12),0))","v":"m²"},{"$f":"IF($A20<>\"Serviço\",0,ROUND(SUMIF($F$9:$P$9,\"<>\",$F20:$P20),15-13*PO!$X$3))","v":2386.4},{"$f":"OFFSET(PO!$P$12,ROW($E20)-ROW(F$12),0)","v":2386.4}]
[{"$f":"OFFSET(PO!J$12,ROW(A21)-ROW($A$12),0)","v":"Serviço"},{"$f":"IF($A21=0,\"\",OFFSET(PO!K$12,ROW(B21)-ROW(B$12),0))","v":"1.2.4."},{"$f":"IF(OFFSET(PO!N$12,ROW(C21)-ROW(C$12),0)=0,\"\",OFFSET(PO!N$12,ROW(C21)-ROW(C$12),0))","v":"Capa Asfáltica em CBUQ espessura de 4 cm"},{"$f":"IF(OFFSET(PO!O$12,ROW(D21)-ROW(D$12),0)=0,\"\",OFFSET(PO!O$12,ROW(D21)-ROW(D$12),0))","v":"m³"},{"$f":"IF($A21<>\"Serviço\",0,ROUND(SUMIF($F$9:$P$9,\"<>\",$F21:$P21),15-13*PO!$X$3))","v":61.5},61.5]
[{"$f":"OFFSET(PO!J$12,ROW(A22)-ROW($A$12),0)","v":"Serviço"},{"$f":"IF($A22=0,\"\",OFFSET(PO!K$12,ROW(B22)-ROW(B$12),0))","v":"1.2.5."},{"$f":"IF(OFFSET(PO!N$12,ROW(C22)-ROW(C$12),0)=0,\"\",OFFSET(PO!N$12,ROW(C22)-ROW(C$12),0))","v":"Transporte comercial com caminhão basculante  18 m³, via pavimentada DMT acima de 30Km (unidade:m³xKm). AF_09/2016 DMT=43km"},{"$f":"IF(OFFSET(PO!O$12,ROW(D22)-ROW(D$12),0)=0,\"\",OFFSET(PO!O$12,ROW(D22)-ROW(D$12),0))","v":"m³xKm"},{"$f":"IF($A22<>\"Serviço\",0,ROUND(SUMIF($F$9:$P$9,\"<>\",$F22:$P22),15-13*PO!$X$3))","v":11570.31},11570.31]
[{"$f":"OFFSET(PO!J$12,ROW(A23)-ROW($A$12),0)","v":"Nível 2"},{"$f":"IF($A23=0,\"\",OFFSET(PO!K$12,ROW(B23)-ROW(B$12),0))","v":"1.3."},{"$f":"IF(OFFSET(PO!N$12,ROW(C23)-ROW(C$12),0)=0,\"\",OFFSET(PO!N$12,ROW(C23)-ROW(C$12),0))","v":"PINTURA E SINALIZAÇÃO "},{"$f":"IF(OFFSET(PO!O$12,ROW(D23)-ROW(D$12),0)=0,\"\",OFFSET(PO!O$12,ROW(D23)-ROW(D$12),0))","v":""},{"$f":"IF($A23<>\"Serviço\",0,ROUND(SUMIF($F$9:$P$9,\"<>\",$F23:$P23),15-13*PO!$X$3))","v":0},0]
[{"$f":"OFFSET(PO!J$12,ROW(A24)-ROW($A$12),0)","v":"Serviço"},{"$f":"IF($A24=0,\"\",OFFSET(PO!K$12,ROW(B24)-ROW(B$12),0))","v":"1.3.1."},{"$f":"IF(OFFSET(PO!N$12,ROW(C24)-ROW(C$12),0)=0,\"\",OFFSET(PO!N$12,ROW(C24)-ROW(C$12),0))","v":"Pintura de faixa de pedestres e sinalização horizontal com tinta retrorefletiva a base de resina acrilica com microesferas de vidro"},{"$f":"IF(OFFSET(PO!O$12,ROW(D24)-ROW(D$12),0)=0,\"\",OFFSET(PO!O$12,ROW(D24)-ROW(D$12),0))","v":"m²"},{"$f":"IF($A24<>\"Serviço\",0,ROUND(SUMIF($F$9:$P$9,\"<>\",$F24:$P24),15-13*PO!$X$3))","v":108.25},108.25]
[{"$f":"OFFSET(PO!J$12,ROW(A25)-ROW($A$12),0)","v":"Nível 2"},{"$f":"IF($A25=0,\"\",OFFSET(PO!K$12,ROW(B25)-ROW(B$12),0))","v":"1.4."},{"$f":"IF(OFFSET(PO!N$12,ROW(C25)-ROW(C$12),0)=0,\"\",OFFSET(PO!N$12,ROW(C25)-ROW(C$12),0))","v":"SERVIÇOS COMPLEMENTARES - LIMPEZA FINAL DE OBRA "},{"$f":"IF(OFFSET(PO!O$12,ROW(D25)-ROW(D$12),0)=0,\"\",OFFSET(PO!O$12,ROW(D25)-ROW(D$12),0))","v":""},{"$f":"IF($A25<>\"Serviço\",0,ROUND(SUMIF($F$9:$P$9,\"<>\",$F25:$P25),15-13*PO!$X$3))","v":0},0]
[{"$f":"OFFSET(PO!J$12,ROW(A26)-ROW($A$12),0)","v":"Serviço"},{"$f":"IF($A26=0,\"\",OFFSET(PO!K$12,ROW(B26)-ROW(B$12),0))","v":"1.4.1."},{"$f":"IF(OFFSET(PO!N$12,ROW(C26)-ROW(C$12),0)=0,\"\",OFFSET(PO!N$12,ROW(C26)-ROW(C$12),0))","v":"Caminhão Pipa, 10.000 L,  inclusive tanque de aço para o transporte de água. "},{"$f":"IF(OFFSET(PO!O$12,ROW(D26)-ROW(D$12),0)=0,\"\",OFFSET(PO!O$12,ROW(D26)-ROW(D$12),0))","v":"chp "},{"$f":"IF($A26<>\"Serviço\",0,ROUND(SUMIF($F$9:$P$9,\"<>\",$F26:$P26),15-13*PO!$X$3))","v":1522},1522]
[]
[]
[null,{"$f":"PO!$K$38","v":"Tunápolis/SC"}]
[null,"Local"]
[]
[null,{"$f":"PO!$K$41","v":"2020-10-20"}]
[null,"Data"]

{"sheet":"CFF","index":4,"n_rows":27,"n_cols":29,"rows_kept":27,"cut":false,"hidden":false,"merged":[[25,11,25,13],[10,11,12,11],[10,12,12,12],[13,11,16,12],[13,13,16,13],[17,11,19,11],[7,11,7,12],[10,13,12,13],[17,12,19,12],[17,13,19,13],[24,16,24,18],[24,12,24,13],[23,16,23,18],[22,16,22,18],[22,11,22,13],[23,12,23,13]]}
[null,null,null,null,null,null,null,null,null,null,null,null,null,null,"    CFF -","CRONOGRAMA FÍSICO-FINANCEIRO"]
[null,null,null,null,null,null,null,null,null,null,null,null,null,null,null,{"$f":"CHOOSE(1+LOG(1+2*(TipoOrçamento=\"BASE\")+4*(TipoOrçamento=\"LICITADO\")+8*(TipoOrçamento=\"REPROGRAMADOAC\")+16*(TipoOrçamento=\"REPROGRAMADONPL\"),2),\"nada\",\"Cronograma Base para Licitação\",\"Cronograma Licitado\",\"Cronograma Licitado Reprogramado\",\"Cronograma Base para Licitação - Reprogramado\")","v":"Cronograma Base para Licitação"}]
[]
[]
[]
[]
[]
["Nível Máx Crono",null,null,null,null,null,null,null,null,null,null,{"$f":"IF(MAX($A$14:$A$22)<>MAX(PO!$V$12:$V$27),\"ERRO: CRONOGRAMA DESATUALIZADO\",IF(OR(COUNTIF($O$16:$X$16,\">1\")>0,OFFSET($X$17,0,-1)<>$N$14),\"ERRO: CRONOGRAMA NÃO FECHA EM 100%\",\"\"))","v":""},null,{"$f":"IF(TipoOrçamento=\"REPROGRAMADOAC\",\"Qtde de Medições realizadas\",\"\")","v":""}]
[1,null,null,null,null,null,null,null,null,null,null,null,null,1,{"$f":"IF(AND(TipoOrçamento=\"REPROGRAMADOAC\",$N$9>0),$N$9-1,0)","v":0},{"$f":"OFFSET(P9,0,-1)+1","v":1},2,3,4,5,6,7,8,null,null,null,null,null,{"$f":"OFFSET(AC9,0,-1)+1","v":1}]
["Lista Crono","Último Nível","Nível","Altura","N1","N2","N3","N4","Czero","Cnível","VTOTAL SOMA","Item","Descrição das Metas / Macrosserviços","Valores Totais (R$)",{"$f":"IF(TipoOrçamento=\"REPROGRAMADOAC\",\"Reinício de Obra\",\"Início de Obra\")&CHAR(10)&TEXT(DADOS!A48,\"dd/mm/aa\")","v":"Início de Obra\n09/11/20"},{"$f":"IF(AND(TipoOrçamento=\"REPROGRAMADOAC\",$N$9>0,N10=\"Valores Totais (R$)\"),\"Parcela \"&$N$9&\" Executado\",\"Parcela \"&P$9&CHAR(10)&TEXT(DATE(YEAR(DADOS!$A$48),MONTH(DADOS!$A$48)+P$9-IF(AND(TipoOrçamento=\"REPROGRAMADOAC\",$N$9>0),$N$9,0),1),\"mmm/aa\"))","v":"Parcela 1\ndez/20"},{"$f":"IF(AND(TipoOrçamento=\"REPROGRAMADOAC\",$N$9>0,O10=\"Valores Totais (R$)\"),\"Parcela \"&$N$9&\" Executado\",\"Parcela \"&Q$9&CHAR(10)&TEXT(DATE(YEAR(DADOS!$A$48),MONTH(DADOS!$A$48)+Q$9-IF(AND(TipoOrçamento=\"REPROGRAMADOAC\",$N$9>0),$N$9,0),1),\"mmm/aa\"))","v":"Parcela 2\njan/21"},{"$f":"IF(AND(TipoOrçamento=\"REPROGRAMADOAC\",$N$9>0,P10=\"Valores Totais (R$)\"),\"Parcela \"&$N$9&\" Executado\",\"Parcela \"&R$9&CHAR(10)&TEXT(DATE(YEAR(DADOS!$A$48),MONTH(DADOS!$A$48)+R$9-IF(AND(TipoOrçamento=\"REPROGRAMADOAC\",$N$9>0),$N$9,0),1),\"mmm/aa\"))","v":"Parcela 3\nfev/21"},{"$f":"IF(AND(TipoOrçamento=\"REPROGRAMADOAC\",$N$9>0,Q10=\"Valores Totais (R$)\"),\"Parcela \"&$N$9&\" Executado\",\"Parcela \"&S$9&CHAR(10)&TEXT(DATE(YEAR(DADOS!$A$48),MONTH(DADOS!$A$48)+S$9-IF(AND(TipoOrçamento=\"REPROGRAMADOAC\",$N$9>0),$N$9,0),1),\"mmm/aa\"))","v":"Parcela 4\nmar/21"},{"$f":"IF(AND(TipoOrçamento=\"REPROGRAMADOAC\",$N$9>0,R10=\"Valores Totais (R$)\"),\"Parcela \"&$N$9&\" Executado\",\"Parcela \"&T$9&CHAR(10)&TEXT(DATE(YEAR(DADOS!$A$48),MONTH(DADOS!$A$48)+T$9-IF(AND(TipoOrçamento=\"REPROGRAMADOAC\",$N$9>0),$N$9,0),1),\"mmm/aa\"))","v":"Parcela 5\nabr/21"},{"$f":"IF(AND(TipoOrçamento=\"REPROGRAMADOAC\",$N$9>0,S10=\"Valores Totais (R$)\"),\"Parcela \"&$N$9&\" Executado\",\"Parcela \"&U$9&CHAR(10)&TEXT(DATE(YEAR(DADOS!$A$48),MONTH(DADOS!$A$48)+U$9-IF(AND(TipoOrçamento=\"REPROGRAMADOAC\",$N$9>0),$N$9,0),1),\"mmm/aa\"))","v":"Parcela 6\nmai/21"},{"$f":"IF(AND(TipoOrçamento=\"REPROGRAMADOAC\",$N$9>0,T10=\"Valores Totais (R$)\"),\"Parcela \"&$N$9&\" Executado\",\"Parcela \"&V$9&CHAR(10)&TEXT(DATE(YEAR(DADOS!$A$48),MONTH(DADOS!$A$48)+V$9-IF(AND(TipoOrçamento=\"REPROGRAMADOAC\",$N$9>0),$N$9,0),1),\"mmm/aa\"))","v":"Parcela 7\njun/21"},{"$f":"IF(AND(TipoOrçamento=\"REPROGRAMADOAC\",$N$9>0,U10=\"Valores Totais (R$)\"),\"Parcela \"&$N$9&\" Executado\",\"Parcela \"&W$9&CHAR(10)&TEXT(DATE(YEAR(DADOS!$A$48),MONTH(DADOS!$A$48)+W$9-IF(AND(TipoOrçamento=\"REPROGRAMADOAC\",$N$9>0),$N$9,0),1),\"mmm/aa\"))","v":"Parcela 8\njul/21"},null,null,null,null,null,{"$f":"IF(AND(TipoOrçamento=\"REPROGRAMADOAC\",$N$9>0,AA10=\"Valores Totais (R$)\"),\"Parcela \"&$N$9&\" Executado\",\"Parcela \"&AC$9&CHAR(10)&TEXT(DATE(YEAR(DADOS!$A$48),MONTH(DADOS!$A$48)+AC$9-IF(AND(TipoOrçamento=\"REPROGRAMADOAC\",$N$9>0),$N$9,0),1),\"mmm/aa\"))","v":"Parcela 1\ndez/20"}]
[null,null,null,null,null,null,null,null,null,null,null,{"$f":"INDEX(PO!K$12:K$27,MATCH($A13,PO!$V$12:$V$27,0))","v":{"$error":"#VALUE!"}},{"$f":"INDEX(PO!N$12:N$27,MATCH($A13,PO!$V$12:$V$27,0))","v":{"$error":"#VALUE!"}},{"$f":"IF(ROUND(K13,2)=0,K13,ROUND(K13,2))","v":{"$error":"#VALUE!"}},"Parcela (%)",{"$f":"IF($B13,0,P12-IF(ISNUMBER(O12),O12,0))","v":{"$error":"#VALUE!"}},{"$f":"IF($B13,0,Q12-IF(ISNUMBER(P12),P12,0))","v":{"$error":"#VALUE!"}},{"$error":"#VALUE!"},{"$error":"#VALUE!"},{"$error":"#VALUE!"},{"$error":"#VALUE!"},{"$error":"#VALUE!"},{"$error":"#VALUE!"},null,null,null,null,null,{"$f":"IF($B13,0,AC12-IF(ISNUMBER(AB12),AB12,0))","v":{"$error":"#VALUE!"}}]
[null,null,null,null,null,null,null,null,null,null,null,null,null,null,"Acumulado (%)",{"$f":"MIN(IF($B13,P11+IF(ISNUMBER(O12),O12,0),P13/$N11),1)","v":{"$error":"#VALUE!"}},{"$f":"MIN(IF($B13,Q11+IF(ISNUMBER(P12),P12,0),Q13/$N11),1)","v":{"$error":"#VALUE!"}},{"$error":"#VALUE!"},{"$error":"#VALUE!"},{"$error":"#VALUE!"},{"$error":"#VALUE!"},{"$error":"#VALUE!"},{"$error":"#VALUE!"},null,null,null,null,null,{"$f":"MIN(IF($B13,AC11+IF(ISNUMBER(AB12),AB12,0),AC13/$N11),1)","v":{"$error":"#VALUE!"}}]
[{"$f":"OFFSET(A13,-CFF.NumLinha,0)+1","v":{"$error":"#VALUE!"}},{"$f":"$C13>=OFFSET($C13,CFF.NumLinha,0)","v":{"$error":"#VALUE!"}},{"$f":"INDEX(PO!A$12:A$27,MATCH($A13,PO!$V$12:$V$27,0))","v":{"$error":"#VALUE!"}},{"$f":"IF(ISERROR(J13),I13,SMALL(I13:J13,1))-1","v":{"$error":"#VALUE!"}},{"$f":"IF($C13=1,OFFSET(E13,-CFF.NumLinha,0)+1,OFFSET(E13,-CFF.NumLinha,0))","v":{"$error":"#VALUE!"}},{"$f":"IF($C13=1,0,IF($C13=2,OFFSET(F13,-CFF.NumLinha,0)+1,OFFSET(F13,-CFF.NumLinha,0)))","v":{"$error":"#VALUE!"}},{"$f":"IF(AND($C13<=2,$C13<>0),0,IF($C13=3,OFFSET(G13,-CFF.NumLinha,0)+1,OFFSET(G13,-CFF.NumLinha,0)))","v":{"$error":"#VALUE!"}},{"$f":"IF(AND($C13<=3,$C13<>0),0,IF($C13=4,OFFSET(H13,-CFF.NumLinha,0)+1,OFFSET(H13,-CFF.NumLinha,0)))","v":{"$error":"#VALUE!"}},{"$f":"MATCH(0,OFFSET($D13,1,$C13,ROW($A$21)-ROW($A13)),0)","v":{"$error":"#VALUE!"}},{"$f":"MATCH(OFFSET($D13,0,$C13)+1,OFFSET($D13,1,$C13,ROW($A$21)-ROW($A13)),0)","v":{"$error":"#VALUE!"}},{"$f":"ROUND(INDEX(PO!T$12:T$27,MATCH($A13,PO!$V$12:$V$27,0)),2)+10^-12","v":{"$error":"#VALUE!"}},null,null,null,"Acumulado (R$)",{"$f":"IF($B13,ROUND(P12*$N11,2),ROUND(SUMIF(OFFSET($B13,1,0,$D13),TRUE,OFFSET(P13,1,0,$D13))/SUMIF(OFFSET($B13,1,0,$D13),TRUE,OFFSET($K13,1,0,$D13))*$N11,2))","v":{"$error":"#VALUE!"}},{"$f":"IF($B13,ROUND(Q12*$N11,2),ROUND(SUMIF(OFFSET($B13,1,0,$D13),TRUE,OFFSET(Q13,1,0,$D13))/SUMIF(OFFSET($B13,1,0,$D13),TRUE,OFFSET($K13,1,0,$D13))*$N11,2))","v":{"$error":"#VALUE!"}},{"$error":"#VALUE!"},{"$error":"#VALUE!"},{"$error":"#VALUE!"},{"$error":"#VALUE!"},{"$error":"#VALUE!"},{"$error":"#VALUE!"},null,null,null,null,null,{"$f":"IF($B13,ROUND(AC12*$N11,2),ROUND(SUMIF(OFFSET($B13,1,0,$D13),TRUE,OFFSET(AC13,1,0,$D13))/SUMIF(OFFSET($B13,1,0,$D13),TRUE,OFFSET($K13,1,0,$D13))*$N11,2))","v":{"$error":"#VALUE!"}}]
[null,null,null,null,null,null,null,null,null,null,null,"CRONOGRAMA GLOBAL DO LOTE",null,{"$f":"IF(PO!$T$12=0,10^-12,PO!$T$12)","v":161021.21},"Parcela (%)",{"$f":"ROUND(P15/$N14,4)","v":0.6},{"$f":"ROUND(Q15/$N14,4)","v":0.2},0.2,0,0,0,0,0,null,null,null,null,null,{"$f":"ROUND(AC15/$N14,4)","v":0}]
[null,null,null,null,null,null,null,null,null,null,null,null,null,null,"Parcela (R$)",{"$f":"P17-IF(ISNUMBER(O17),O17,0)","v":96612.73},{"$f":"Q17-IF(ISNUMBER(P17),P17,0)","v":32204.240000000005},32204.239999999991,0,0,0,0,0,null,null,null,null,null,{"$f":"AC17-IF(ISNUMBER(AB17),AB17,0)","v":0}]
[null,null,null,null,null,null,null,null,null,null,null,null,null,null,"Acumulado (%)",{"$f":"ROUND(P17/$N14,4)","v":0.6},{"$f":"ROUND(Q17/$N14,4)","v":0.8},1,1,1,1,1,1,null,null,null,null,null,{"$f":"ROUND(AC17/$N14,4)","v":0}]
[0,null,null,{"$f":"ROW(D$21)-ROW(D18)","v":3},null,null,null,null,null,null,null,null,null,null,"Acumulado (R$)",{"$f":"SUMIF(OFFSET($C17,1,0):$C$21,1,OFFSET(P17,1,0):P$21)","v":96612.73},{"$f":"SUMIF(OFFSET($C17,1,0):$C$21,1,OFFSET(Q17,1,0):Q$21)","v":128816.97},{"$f":"SUMIF(OFFSET($C17,1,0):$C$21,1,OFFSET(R17,1,0):R$21)","v":161021.21},{"$f":"SUMIF(OFFSET($C17,1,0):$C$21,1,OFFSET(S17,1,0):S$21)","v":161021.21},{"$f":"SUMIF(OFFSET($C17,1,0):$C$21,1,OFFSET(T17,1,0):T$21)","v":161021.21},{"$f":"SUMIF(OFFSET($C17,1,0):$C$21,1,OFFSET(U17,1,0):U$21)","v":161021.21},{"$f":"SUMIF(OFFSET($C17,1,0):$C$21,1,OFFSET(V17,1,0):V$21)","v":161021.21},{"$f":"SUMIF(OFFSET($C17,1,0):$C$21,1,OFFSET(W17,1,0):W$21)","v":161021.21},null,null,null,null,null,{"$f":"SUMIF(OFFSET($C17,1,0):$C$21,1,OFFSET(AC17,1,0):AC$21)","v":0}]
[null,null,null,null,null,null,null,null,null,null,null,{"$f":"INDEX(PO!K$12:K$27,MATCH($A20,PO!$V$12:$V$27,0))","v":"1."},{"$f":"INDEX(PO!N$12:N$27,MATCH($A20,PO!$V$12:$V$27,0))","v":"RUA SÃO LOURENÇO "},{"$f":"IF(ROUND(K20,2)=0,K20,ROUND(K20,2))","v":161021.21},"Parcela (%)",0.6,0.2,0.2,{"$f":"IF($B20,0,S19-IF(ISNUMBER(R19),R19,0))","v":0},0,0,0,0,"",null,null,null,null,{"$f":"IF($B20,0,AC19-IF(ISNUMBER(AB19),AB19,0))","v":0}]
[null,null,null,null,null,null,null,null,null,null,null,null,null,null,"Acumulado (%)",{"$f":"MIN(IF($B20,P18+IF(ISNUMBER(O19),O19,0),P20/$N18),1)","v":0.6},0.8,1,1,1,1,1,1,null,null,null,null,null,{"$f":"MIN(IF($B20,AC18+IF(ISNUMBER(AB19),AB19,0),AC20/$N18),1)","v":0}]
[{"$f":"OFFSET(A20,-CFF.NumLinha,0)+1","v":1},{"$f":"$C20>=OFFSET($C20,CFF.NumLinha,0)","v":true},{"$f":"INDEX(PO!A$12:A$27,MATCH($A20,PO!$V$12:$V$27,0))","v":1},{"$f":"IF(ISERROR(J20),I20,SMALL(I20:J20,1))-1","v":0},{"$f":"IF($C20=1,OFFSET(E20,-CFF.NumLinha,0)+1,OFFSET(E20,-CFF.NumLinha,0))","v":1},{"$f":"IF($C20=1,0,IF($C20=2,OFFSET(F20,-CFF.NumLinha,0)+1,OFFSET(F20,-CFF.NumLinha,0)))","v":0},{"$f":"IF(AND($C20<=2,$C20<>0),0,IF($C20=3,OFFSET(G20,-CFF.NumLinha,0)+1,OFFSET(G20,-CFF.NumLinha,0)))","v":0},{"$f":"IF(AND($C20<=3,$C20<>0),0,IF($C20=4,OFFSET(H20,-CFF.NumLinha,0)+1,OFFSET(H20,-CFF.NumLinha,0)))","v":0},{"$f":"MATCH(0,OFFSET($D20,1,$C20,ROW($A$21)-ROW($A20)),0)","v":1},{"$f":"MATCH(OFFSET($D20,0,$C20)+1,OFFSET($D20,1,$C20,ROW($A$21)-ROW($A20)),0)","v":{"$error":"#N/A"}},{"$f":"ROUND(INDEX(PO!T$12:T$27,MATCH($A20,PO!$V$12:$V$27,0)),2)+10^-12","v":161021.21},null,null,null,"Acumulado (R$)",{"$f":"IF($B20,ROUND(P19*$N18,2),ROUND(SUMIF(OFFSET($B20,1,0,$D20),TRUE,OFFSET(P20,1,0,$D20))/SUMIF(OFFSET($B20,1,0,$D20),TRUE,OFFSET($K20,1,0,$D20))*$N18,2))","v":96612.73},128816.97,161021.21,161021.21,161021.21,161021.21,161021.21,161021.21,null,null,null,null,null,{"$f":"IF($B20,ROUND(AC19*$N18,2),ROUND(SUMIF(OFFSET($B20,1,0,$D20),TRUE,OFFSET(AC20,1,0,$D20))/SUMIF(OFFSET($B20,1,0,$D20),TRUE,OFFSET($K20,1,0,$D20))*$N18,2))","v":0}]
[null,null,-1,null,0,0,0,0]
[]
[null,null,null,null,null,null,null,null,null,null,null,{"$f":"DADOS!I32","v":0}]
[null,null,null,null,null,null,null,null,null,null,null,"Local"]
[]
[null,null,null,null,null,null,null,null,null,null,null,{"$f":"PO!K41","v":"2020-10-20"}]
[null,null,null,null,null,null,null,null,null,null,null,"Data"]